{"text_format":"1","workbook":"xlsx","n_sheets":10,"sheets":["Document Allocation","logistics","AllDocs","TP","REQ","ARC","PRO","SEC","MAS","TST"],"not_rendered":{"charts":0,"images":1,"macros":1,"external_links":0,"defined_names":14,"comments":0,"pivot_tables":0},"unopened":[],"bounds":{"document_bytes":16777216,"sheet_cells":100000,"rows_first":2000,"rows_last":500,"rows_between":2000,"halvings":0,"cell_chars":16384,"cell_head_chars":4096},"cells_cut":0,"cells_raw":0,"read":"whole","date_system":"1900"}

{"sheet":"Document Allocation","index":0,"n_rows":70,"n_cols":13,"rows_kept":70,"cut":false,"hidden":false,"merged":[]}
["Slot","Room","WG","Doc-Number","Title","Source","Upload Time","WG disposition (Agreed, Noted, Postponed, Withdrawn)","Type (INC, CR, AG, MIN)","Work Item","Rel","Purpose","Notes"]
["Tue-3 (13:30-15:00)",{"$f":"VLOOKUP(A2,logistics!G:I,2,0)","v":"Chateau Rothschild"},{"$f":"VLOOKUP(A2,logistics!G:I,3,0)","v":"MAS-adhoc"},"<opening>",{"$f":"VLOOKUP(D2,AllDocs!A:D,2,0)","v":{"$error":"#N/A"}},{"$f":"VLOOKUP(D2,AllDocs!A:D,3,0)","v":{"$error":"#N/A"}},{"$f":"VLOOKUP(D2,AllDocs!A:D,4,0)","v":{"$error":"#N/A"}},null,{"$f":"VLOOKUP(D2,AllDocs!A:F,6,0)","v":{"$error":"#N/A"}}]
["Tue-3 (13:30-15:00)",{"$f":"VLOOKUP(A3,logistics!G:I,2,0)","v":"Chateau Rothschild"},{"$f":"VLOOKUP(A3,logistics!G:I,3,0)","v":"MAS-adhoc"},"MAS-2017-0019",{"$f":"VLOOKUP(D3,AllDocs!A:D,2,0)","v":"Agenda MAS#27"},{"$f":"VLOOKUP(D3,AllDocs!A:D,3,0)","v":"Yongjing Zhang (Huawei, MAS Chair)"},{"$f":"VLOOKUP(D3,AllDocs!A:D,4,0)","v":"2017-02-11T18:38:00"},null,{"$f":"VLOOKUP(D3,AllDocs!A:F,6,0)","v":"AG"},null,null,null,"Changed to R01"]
["Tue-3 (13:30-15:00)",{"$f":"VLOOKUP(A4,logistics!G:I,2,0)","v":"Chateau Rothschild"},{"$f":"VLOOKUP(A4,logistics!G:I,3,0)","v":"MAS-adhoc"},"MAS-2017-0020",{"$f":"VLOOKUP(D4,AllDocs!A:D,2,0)","v":"Doc Allocation MAS#27"},{"$f":"VLOOKUP(D4,AllDocs!A:D,3,0)","v":"Yongjing Zhang (Huawei, MAS Chair)"},{"$f":"VLOOKUP(D4,AllDocs!A:D,4,0)","v":"2017-02-11T18:36:48"},null,{"$f":"VLOOKUP(D4,AllDocs!A:F,6,0)","v":"AG"},null,null,null,"Changed to R01"]
["Tue-3 (13:30-15:00)",{"$f":"VLOOKUP(A5,logistics!G:I,2,0)","v":"Chateau Rothschild"},{"$f":"VLOOKUP(A5,logistics!G:I,3,0)","v":"MAS-adhoc"},"MAS-2017-0016",{"$f":"VLOOKUP(D5,AllDocs!A:D,2,0)","v":"Draft-TS-0022_V0_9_0_for_review"},{"$f":"VLOOKUP(D5,AllDocs!A:D,3,0)","v":"TS-0022 Rapporteur"},{"$f":"VLOOKUP(D5,AllDocs!A:D,4,0)","v":"2017-02-06T11:42:24"},null,{"$f":"VLOOKUP(D5,AllDocs!A:F,6,0)","v":"INC"},"TS-0022 (WI-0030)",2,null,"NO COMMENTS"]
["Tue-3 (13:30-15:00)",{"$f":"VLOOKUP(A6,logistics!G:I,2,0)","v":"Chateau Rothschild"},{"$f":"VLOOKUP(A6,logistics!G:I,3,0)","v":"MAS-adhoc"},"MAS-2017-0002",{"$f":"VLOOKUP(D6,AllDocs!A:D,2,0)","v":"TS-0006-Data_collection_schedules"},{"$f":"VLOOKUP(D6,AllDocs!A:D,3,0)","v":"Timothy Carey, Nokia"},{"$f":"VLOOKUP(D6,AllDocs!A:D,4,0)","v":"2017-01-09T17:14:19"},null,{"$f":"VLOOKUP(D6,AllDocs!A:F,6,0)","v":"INC"},null,null,null,"NO COMMENTS."]
["Tue-3 (13:30-15:00)",{"$f":"VLOOKUP(A7,logistics!G:I,2,0)","v":"Chateau Rothschild"},{"$f":"VLOOKUP(A7,logistics!G:I,3,0)","v":"MAS-adhoc"},"TP-2017-0012",{"$f":"VLOOKUP(D7,AllDocs!A:D,2,0)","v":"Response to oneM2M LS TP-2016-0334R03"},{"$f":"VLOOKUP(D7,AllDocs!A:D,3,0)","v":"OCF"},{"$f":"VLOOKUP(D7,AllDocs!A:D,4,0)","v":"2017-02-09T16:04:33"},null,{"$f":"VLOOKUP(D7,AllDocs!A:F,6,0)","v":"LS"},null,null,null,"concerns: Under Proximal Interworking WI, OCF specific aspect of interworking should be reflected in existing OIC interworking TS rather than in a new TS, to be consistent."]
["Tue-3 (13:30-15:00)",{"$f":"VLOOKUP(A8,logistics!G:I,2,0)","v":"Chateau Rothschild"},{"$f":"VLOOKUP(A8,logistics!G:I,3,0)","v":"MAS-adhoc"},"TP-2017-0002",{"$f":"VLOOKUP(D8,AllDocs!A:D,2,0)","v":"Comments on the oneM2M Home Appliance Information Model and Mapping"},{"$f":"VLOOKUP(D8,AllDocs!A:D,3,0)","v":"OMA CD"},{"$f":"VLOOKUP(D8,AllDocs!A:D,4,0)","v":"2017-01-11T14:51:51"},null,{"$f":"VLOOKUP(D8,AllDocs!A:F,6,0)","v":"LS"},null,null,null,"comments: contribution should come from member companies."]
["Tue-3 (13:30-15:00)",{"$f":"VLOOKUP(A9,logistics!G:I,2,0)","v":"Chateau Rothschild"},{"$f":"VLOOKUP(A9,logistics!G:I,3,0)","v":"MAS-adhoc"},"MAS-2017-0015",{"$f":"VLOOKUP(D9,AllDocs!A:D,2,0)","v":"HAIM_modification_for_Washer_model"},{"$f":"VLOOKUP(D9,AllDocs!A:D,3,0)","v":"LG Electronics"},{"$f":"VLOOKUP(D9,AllDocs!A:D,4,0)","v":"2017-02-06T02:01:09"},null,{"$f":"VLOOKUP(D9,AllDocs!A:F,6,0)","v":"CR"},"TS-0023 (WI-0056)",3,null,"comments: \nprogressPercentage should be float, not integer.\nSeparate jobState for different device models.\nR01 expected.\nAI: Dongjoo to check/seperate the jobState for other device models through out TS-0023."]
["Tue-4 (15:30-17:00)",{"$f":"VLOOKUP(A10,logistics!G:I,2,0)","v":"Versailles A"},{"$f":"VLOOKUP(A10,logistics!G:I,3,0)","v":"MAS"},"<HAIM>",{"$f":"VLOOKUP(D10,AllDocs!A:D,2,0)","v":{"$error":"#N/A"}},{"$f":"VLOOKUP(D10,AllDocs!A:D,3,0)","v":{"$error":"#N/A"}},{"$f":"VLOOKUP(D10,AllDocs!A:D,4,0)","v":{"$error":"#N/A"}},null,{"$f":"VLOOKUP(D10,AllDocs!A:F,6,0)","v":{"$error":"#N/A"}}]
["Tue-4 (15:30-17:00)",{"$f":"VLOOKUP(A11,logistics!G:I,2,0)","v":"Versailles A"},{"$f":"VLOOKUP(A11,logistics!G:I,3,0)","v":"MAS"},"MAS-2017-0019R02",{"$f":"VLOOKUP(D11,AllDocs!A:D,2,0)","v":"Agenda MAS#27"},{"$f":"VLOOKUP(D11,AllDocs!A:D,3,0)","v":"Yongjing Zhang (Huawei, MAS Chair)"},{"$f":"VLOOKUP(D11,AllDocs!A:D,4,0)","v":"2017-02-15T00:06:51"},"Agreed",{"$f":"VLOOKUP(D11,AllDocs!A:F,6,0)","v":"AG"}]
["Tue-4 (15:30-17:00)",{"$f":"VLOOKUP(A12,logistics!G:I,2,0)","v":"Versailles A"},{"$f":"VLOOKUP(A12,logistics!G:I,3,0)","v":"MAS"},"MAS-2017-0020R02",{"$f":"VLOOKUP(D12,AllDocs!A:D,2,0)","v":"Doc Allocation MAS#27"},{"$f":"VLOOKUP(D12,AllDocs!A:D,3,0)","v":"Yongjing Zhang (Huawei, MAS Chair)"},{"$f":"VLOOKUP(D12,AllDocs!A:D,4,0)","v":"2017-02-15T02:34:56"},"Noted",{"$f":"VLOOKUP(D12,AllDocs!A:F,6,0)","v":"AG"}]
["Tue-4 (15:30-17:00)",{"$f":"VLOOKUP(A13,logistics!G:I,2,0)","v":"Versailles A"},{"$f":"VLOOKUP(A13,logistics!G:I,3,0)","v":"MAS"},"MAS-2017-0016",{"$f":"VLOOKUP(D13,AllDocs!A:D,2,0)","v":"Draft-TS-0022_V0_9_0_for_review"},{"$f":"VLOOKUP(D13,AllDocs!A:D,3,0)","v":"TS-0022 Rapporteur"},{"$f":"VLOOKUP(D13,AllDocs!A:D,4,0)","v":"2017-02-06T11:42:24"},"Noted",{"$f":"VLOOKUP(D13,AllDocs!A:F,6,0)","v":"INC"},"TS-0022 (WI-0030)",2,null,"version numbering, meeting number, date are corrected."]
["Tue-4 (15:30-17:00)",{"$f":"VLOOKUP(A14,logistics!G:I,2,0)","v":"Versailles A"},{"$f":"VLOOKUP(A14,logistics!G:I,3,0)","v":"MAS"},"MAS-2017-0016R01",{"$f":"VLOOKUP(D14,AllDocs!A:D,2,0)","v":"Draft-TS-0022_V0_9_0_for_review"},{"$f":"VLOOKUP(D14,AllDocs!A:D,3,0)","v":"TS-0022 Rapporteur"},{"$f":"VLOOKUP(D14,AllDocs!A:D,4,0)","v":"2017-02-14T23:51:13"},"Agreed",{"$f":"VLOOKUP(D14,AllDocs!A:F,6,0)","v":"INC"},"TS-0022 (WI-0030)",2,null,"AI: rapporteur to provide a new baseline base on new template."]
["Tue-4 (15:30-17:00)",{"$f":"VLOOKUP(A15,logistics!G:I,2,0)","v":"Versailles A"},{"$f":"VLOOKUP(A15,logistics!G:I,3,0)","v":"MAS"},"MAS-2017-0002",{"$f":"VLOOKUP(D15,AllDocs!A:D,2,0)","v":"TS-0006-Data_collection_schedules"},{"$f":"VLOOKUP(D15,AllDocs!A:D,3,0)","v":"Timothy Carey, Nokia"},{"$f":"VLOOKUP(D15,AllDocs!A:D,4,0)","v":"2017-01-09T17:14:19"},"Agreed",{"$f":"VLOOKUP(D15,AllDocs!A:F,6,0)","v":"INC"},null,2]
["Tue-4 (15:30-17:00)",{"$f":"VLOOKUP(A16,logistics!G:I,2,0)","v":"Versailles A"},{"$f":"VLOOKUP(A16,logistics!G:I,3,0)","v":"MAS"},"MAS-2017-0014",{"$f":"VLOOKUP(D16,AllDocs!A:D,2,0)","v":"Generic Procedure for Mapping of LWM2M Objects"},{"$f":"VLOOKUP(D16,AllDocs!A:D,3,0)","v":"Convida Wireless"},{"$f":"VLOOKUP(D16,AllDocs!A:D,4,0)","v":"2017-02-05T22:29:51"},"Noted",{"$f":"VLOOKUP(D16,AllDocs!A:F,6,0)","v":"CR"},"TR-0031 (WI-0052)",3,null,"comments:\ncheck TS-0014 if other metadata (i.e. lable) should be captured in the resource mapping.\n\n'objectID' definition doesn't support URL to XSD."]
["Tue-4 (15:30-17:00)",{"$f":"VLOOKUP(A17,logistics!G:I,2,0)","v":"Versailles A"},{"$f":"VLOOKUP(A17,logistics!G:I,3,0)","v":"MAS"},"MAS-2017-0015",{"$f":"VLOOKUP(D17,AllDocs!A:D,2,0)","v":"HAIM_modification_for_Washer_model"},{"$f":"VLOOKUP(D17,AllDocs!A:D,3,0)","v":"LG Electronics"},{"$f":"VLOOKUP(D17,AllDocs!A:D,4,0)","v":"2017-02-06T02:01:09"},"Noted",{"$f":"VLOOKUP(D17,AllDocs!A:F,6,0)","v":"CR"},"TS-0023 (WI-0056)",3,null,"Revision expected.\nNaming of moduleclasses and enumeration types should be careful."]
["Tue-4 (15:30-17:00)",{"$f":"VLOOKUP(A18,logistics!G:I,2,0)","v":"Versailles A"},{"$f":"VLOOKUP(A18,logistics!G:I,3,0)","v":"MAS"},"TP-2017-0007R02",{"$f":"VLOOKUP(D18,AllDocs!A:D,2,0)","v":"New WI Disaster Alert Service Enabler"},{"$f":"VLOOKUP(D18,AllDocs!A:D,3,0)","v":"KETI, SyncTechno"},{"$f":"VLOOKUP(D18,AllDocs!A:D,4,0)","v":"2017-02-14T17:56:04"},"Noted",{"$f":"VLOOKUP(D18,AllDocs!A:F,6,0)","v":"INC"},null,3]
["Tue-4 (15:30-17:00)",{"$f":"VLOOKUP(A19,logistics!G:I,2,0)","v":"Versailles A"},{"$f":"VLOOKUP(A19,logistics!G:I,3,0)","v":"MAS"},"TP-2017-0004R02",{"$f":"VLOOKUP(D19,AllDocs!A:D,2,0)","v":"New WI for W3C WoT IWK"},{"$f":"VLOOKUP(D19,AllDocs!A:D,3,0)","v":"Yongjing Zhang (Huawei)"},{"$f":"VLOOKUP(D19,AllDocs!A:D,4,0)","v":"2017-02-04T07:43:09"},"Noted",{"$f":"VLOOKUP(D19,AllDocs!A:F,6,0)","v":"INC"},null,3]
["Wed-1 (08:30-10:00)",{"$f":"VLOOKUP(A20,logistics!G:I,2,0)","v":"Versailles B"},{"$f":"VLOOKUP(A20,logistics!G:I,3,0)","v":"MAS"},"<Semantics>",{"$f":"VLOOKUP(D20,AllDocs!A:D,2,0)","v":{"$error":"#N/A"}},{"$f":"VLOOKUP(D20,AllDocs!A:D,3,0)","v":{"$error":"#N/A"}},{"$f":"VLOOKUP(D20,AllDocs!A:D,4,0)","v":{"$error":"#N/A"}},null,{"$f":"VLOOKUP(D20,AllDocs!A:F,6,0)","v":{"$error":"#N/A"}}]
["Wed-1 (08:30-10:00)",{"$f":"VLOOKUP(A21,logistics!G:I,2,0)","v":"Versailles B"},{"$f":"VLOOKUP(A21,logistics!G:I,3,0)","v":"MAS"},"MAS-2017-0006",{"$f":"VLOOKUP(D21,AllDocs!A:D,2,0)","v":"Comments on the oneM2M Home Appliance Information Model and Mapping"},{"$f":"VLOOKUP(D21,AllDocs!A:D,3,0)","v":"OMA CD"},{"$f":"VLOOKUP(D21,AllDocs!A:D,4,0)","v":"2017-01-11T14:56:17"},"Noted",{"$f":"VLOOKUP(D21,AllDocs!A:F,6,0)","v":"LS"},"TS-0023 (WI-0056)",3]
["Wed-1 (08:30-10:00)",{"$f":"VLOOKUP(A22,logistics!G:I,2,0)","v":"Versailles B"},{"$f":"VLOOKUP(A22,logistics!G:I,3,0)","v":"MAS"},"TP-2017-0002",{"$f":"VLOOKUP(D22,AllDocs!A:D,2,0)","v":"Comments on the oneM2M Home Appliance Information Model and Mapping"},{"$f":"VLOOKUP(D22,AllDocs!A:D,3,0)","v":"OMA CD"},{"$f":"VLOOKUP(D22,AllDocs!A:D,4,0)","v":"2017-01-11T14:51:51"},"Noted",{"$f":"VLOOKUP(D22,AllDocs!A:F,6,0)","v":"LS"},null,null,null,"NTT will draft a short LS reply to OMA CD."]
["Wed-1 (08:30-10:00)",{"$f":"VLOOKUP(A23,logistics!G:I,2,0)","v":"Versailles B"},{"$f":"VLOOKUP(A23,logistics!G:I,3,0)","v":"MAS"},"MAS-2017-0009R02",{"$f":"VLOOKUP(D23,AllDocs!A:D,2,0)","v":"Adding healthcare device model of OMA CDWG to TS-0023"},{"$f":"VLOOKUP(D23,AllDocs!A:D,3,0)","v":"NTT, NTT DOCOMO"},{"$f":"VLOOKUP(D23,AllDocs!A:D,4,0)","v":"2017-02-03T08:05:24"},"Noted",{"$f":"VLOOKUP(D23,AllDocs!A:F,6,0)","v":"CR"},"TS-0023 (WI-0056)",3]
["Wed-1 (08:30-10:00)",{"$f":"VLOOKUP(A24,logistics!G:I,2,0)","v":"Versailles B"},{"$f":"VLOOKUP(A24,logistics!G:I,3,0)","v":"MAS"},"MAS-2017-0009R03",{"$f":"VLOOKUP(D24,AllDocs!A:D,2,0)","v":"Adding healthcare device model of OMA CDWG to TS-0023"},{"$f":"VLOOKUP(D24,AllDocs!A:D,3,0)","v":"NTT, NTT DOCOMO"},{"$f":"VLOOKUP(D24,AllDocs!A:D,4,0)","v":"2017-02-06T08:35:45"},"Noted",{"$f":"VLOOKUP(D24,AllDocs!A:F,6,0)","v":"CR"},"TS-0023 (WI-0056)",3]
["Wed-1 (08:30-10:00)",{"$f":"VLOOKUP(A25,logistics!G:I,2,0)","v":"Versailles B"},{"$f":"VLOOKUP(A25,logistics!G:I,3,0)","v":"MAS"},"MAS-2017-0009R04",{"$f":"VLOOKUP(D25,AllDocs!A:D,2,0)","v":"Adding healthcare device model of OMA CDWG to TS-0023"},{"$f":"VLOOKUP(D25,AllDocs!A:D,3,0)","v":"NTT, NTT DOCOMO"},{"$f":"VLOOKUP(D25,AllDocs!A:D,4,0)","v":"2017-02-15T23:35:24"},"Agreed",{"$f":"VLOOKUP(D25,AllDocs!A:F,6,0)","v":"CR"},"TS-0023 (WI-0056)",3]
["Wed-1 (08:30-10:00)",{"$f":"VLOOKUP(A26,logistics!G:I,2,0)","v":"Versailles B"},{"$f":"VLOOKUP(A26,logistics!G:I,3,0)","v":"MAS"},"MAS-2016-0292",{"$f":"VLOOKUP(D26,AllDocs!A:D,2,0)","v":"section-Toy_in_TS-0023"},{"$f":"VLOOKUP(D26,AllDocs!A:D,3,0)","v":"motionblue,blockToy"},{"$f":"VLOOKUP(D26,AllDocs!A:D,4,0)","v":"2016-12-28T15:40:38"},"Noted",{"$f":"VLOOKUP(D26,AllDocs!A:F,6,0)","v":"CR"},"TS-0023 (WI-0056)",3]
["Wed-1 (08:30-10:00)",{"$f":"VLOOKUP(A27,logistics!G:I,2,0)","v":"Versailles B"},{"$f":"VLOOKUP(A27,logistics!G:I,3,0)","v":"MAS"},"MAS-2017-0011",{"$f":"VLOOKUP(D27,AllDocs!A:D,2,0)","v":"CR TS-0012 Introduction of class VariableConversion to support device abstraction"},{"$f":"VLOOKUP(D27,AllDocs!A:D,3,0)","v":"NEC"},{"$f":"VLOOKUP(D27,AllDocs!A:D,4,0)","v":"2017-02-03T22:01:33"},"Noted",{"$f":"VLOOKUP(D27,AllDocs!A:F,6,0)","v":"CR"},"TS-0012 (WI-0063)",3,null,"Revision expected to put concrete examples in the CR."]
["Wed-1 (08:30-10:00)",{"$f":"VLOOKUP(A28,logistics!G:I,2,0)","v":"Versailles B"},{"$f":"VLOOKUP(A28,logistics!G:I,3,0)","v":"MAS"},"MAS-2017-0012",{"$f":"VLOOKUP(D28,AllDocs!A:D,2,0)","v":"CR TS-0030 Specification of an Abstraction Application Entity for device abstraction"},{"$f":"VLOOKUP(D28,AllDocs!A:D,3,0)","v":"NEC"},{"$f":"VLOOKUP(D28,AllDocs!A:D,4,0)","v":"2017-02-03T22:02:01"},null,{"$f":"VLOOKUP(D28,AllDocs!A:F,6,0)","v":"CR"},"TS-0030 (WI-0063)",3,null,"keep open, continue disucssion in adhoc"]
["Wed-1 (08:30-10:00)",{"$f":"VLOOKUP(A29,logistics!G:I,2,0)","v":"Versailles B"},{"$f":"VLOOKUP(A29,logistics!G:I,3,0)","v":"MAS"},"MAS-2017-0018",{"$f":"VLOOKUP(D29,AllDocs!A:D,2,0)","v":"Semantic Content Instances"},{"$f":"VLOOKUP(D29,AllDocs!A:D,3,0)","v":"NEC"},{"$f":"VLOOKUP(D29,AllDocs!A:D,4,0)","v":"2017-02-06T16:40:38"},"Noted",{"$f":"VLOOKUP(D29,AllDocs!A:F,6,0)","v":"INC"},"TR-0033 (WI-0053)",3,null,"there are limitations: data duplication in case sensor can only report raw data. Not extensible to support generic semantic discovery/query for other resource/metadata e.g. <AE>"]
["Wed-1 (08:30-10:00)",{"$f":"VLOOKUP(A30,logistics!G:I,2,0)","v":"Versailles B"},{"$f":"VLOOKUP(A30,logistics!G:I,3,0)","v":"MAS"},"MAS-2017-0018R01",{"$f":"VLOOKUP(D30,AllDocs!A:D,2,0)","v":"Semantic Content Instances"},{"$f":"VLOOKUP(D30,AllDocs!A:D,3,0)","v":"NEC"},{"$f":"VLOOKUP(D30,AllDocs!A:D,4,0)","v":"2017-02-15T18:14:11"},"Agreed",{"$f":"VLOOKUP(D30,AllDocs!A:F,6,0)","v":"INC"},"TR-0033 (WI-0053)",3,null,"other solutions could be explored."]
["Wed-2 (10:30-12:00)",{"$f":"VLOOKUP(A31,logistics!G:I,2,0)","v":"Versailles A"},{"$f":"VLOOKUP(A31,logistics!G:I,3,0)","v":"ARC / MAS"},"<MAS/ARC joint>",{"$f":"VLOOKUP(D31,AllDocs!A:D,2,0)","v":{"$error":"#N/A"}},{"$f":"VLOOKUP(D31,AllDocs!A:D,3,0)","v":{"$error":"#N/A"}},{"$f":"VLOOKUP(D31,AllDocs!A:D,4,0)","v":{"$error":"#N/A"}},null,{"$f":"VLOOKUP(D31,AllDocs!A:F,6,0)","v":{"$error":"#N/A"}}]
["Wed-2 (10:30-12:00)",{"$f":"VLOOKUP(A32,logistics!G:I,2,0)","v":"Versailles A"},{"$f":"VLOOKUP(A32,logistics!G:I,3,0)","v":"ARC / MAS"},"ARC-2017-0038",{"$f":"VLOOKUP(D32,AllDocs!A:D,2,0)","v":"TS0001_semanticDescriptor for mgmtObj R3"},{"$f":"VLOOKUP(D32,AllDocs!A:D,3,0)","v":"Yongjing Zhang (Huawei)"},{"$f":"VLOOKUP(D32,AllDocs!A:D,4,0)","v":"2017-02-04T07:40:39"},"Agreed",{"$f":"VLOOKUP(D32,AllDocs!A:F,6,0)","v":"CR"},null,3,null,"Mirror CR to R2 will be brought to another ARC session."]
["Wed-2 (10:30-12:00)",{"$f":"VLOOKUP(A33,logistics!G:I,2,0)","v":"Versailles A"},{"$f":"VLOOKUP(A33,logistics!G:I,3,0)","v":"ARC / MAS"},"ARC-2017-0039",{"$f":"VLOOKUP(D33,AllDocs!A:D,2,0)","v":"TS0001_semanticDescriptor for mgmtObj R2"},{"$f":"VLOOKUP(D33,AllDocs!A:D,3,0)","v":"Yongjing Zhang (Huawei)"},{"$f":"VLOOKUP(D33,AllDocs!A:D,4,0)","v":"00:00:00"},"Agreed",{"$f":"VLOOKUP(D33,AllDocs!A:F,6,0)","v":"CR"},null,2]
["Wed-2 (10:30-12:00)",{"$f":"VLOOKUP(A34,logistics!G:I,2,0)","v":"Versailles A"},{"$f":"VLOOKUP(A34,logistics!G:I,3,0)","v":"ARC / MAS"},"ARC-2017-0042",{"$f":"VLOOKUP(D34,AllDocs!A:D,2,0)","v":"TS0001 clause 10.2.8 ref num bug fix R3"},{"$f":"VLOOKUP(D34,AllDocs!A:D,3,0)","v":"Yongjing Zhang (Huawei)"},{"$f":"VLOOKUP(D34,AllDocs!A:D,4,0)","v":"2017-02-04T09:58:48"},"Agreed",{"$f":"VLOOKUP(D34,AllDocs!A:F,6,0)","v":"CR"},null,3]
["Wed-5 (17:00-18:30)",{"$f":"VLOOKUP(A35,logistics!G:I,2,0)","v":"Chateau Rothschild"},{"$f":"VLOOKUP(A35,logistics!G:I,3,0)","v":"MAS-adhoc"},"MAS-2017-0013",{"$f":"VLOOKUP(D35,AllDocs!A:D,2,0)","v":"Semantic Mashup Procedures"},{"$f":"VLOOKUP(D35,AllDocs!A:D,3,0)","v":"Convida, China Unicom"},{"$f":"VLOOKUP(D35,AllDocs!A:D,4,0)","v":"2017-02-05T23:54:21"},null,{"$f":"VLOOKUP(D35,AllDocs!A:F,6,0)","v":"CR"},"TR-0033 (WI-0053)",3,null,"comments:\n1. no need to show \"semantic graph store\" in the flow. It's an implementation specific, not architecutral element.\n2. step 2 in 8.8.x.2 don't need to check and reuse existing SMI.\nRevision expected."]
["Wed-5 (17:00-18:30)",{"$f":"VLOOKUP(A36,logistics!G:I,2,0)","v":"Chateau Rothschild"},{"$f":"VLOOKUP(A36,logistics!G:I,3,0)","v":"MAS-adhoc"},"MAS-2017-0012",{"$f":"VLOOKUP(D36,AllDocs!A:D,2,0)","v":"CR TS-0030 Specification of an Abstraction Application Entity for device abstraction"},{"$f":"VLOOKUP(D36,AllDocs!A:D,3,0)","v":"NEC"},{"$f":"VLOOKUP(D36,AllDocs!A:D,4,0)","v":"2017-02-03T22:02:01"},null,{"$f":"VLOOKUP(D36,AllDocs!A:F,6,0)","v":"CR"},"TS-0030 (WI-0063)",3,null,"COMMENTS:\n1. Abstraction AE may be combined with IPE.\n2. why not use 'function'/'command' as the abstraction concepts rather than another set of services.\n2. concrete examples would be helpful to understand the solution.\n3. suggest to note this contribution for this meeting, and see revision next time."]
["Wed-5 (17:00-18:30)",{"$f":"VLOOKUP(A37,logistics!G:I,2,0)","v":"Chateau Rothschild"},{"$f":"VLOOKUP(A37,logistics!G:I,3,0)","v":"MAS-adhoc"},"MAS-2017-0017",{"$f":"VLOOKUP(D37,AllDocs!A:D,2,0)","v":"Semantic TS skeleton proposal"},{"$f":"VLOOKUP(D37,AllDocs!A:D,3,0)","v":"Convida"},{"$f":"VLOOKUP(D37,AllDocs!A:D,4,0)","v":"2017-02-06T14:37:34"},null,{"$f":"VLOOKUP(D37,AllDocs!A:F,6,0)","v":"INC"},null,3,null,"COMMENTS:\n1.whether new resource types should be kept in this TS or TS-0001 is to be discussed with ARC.\n2."]
["Thu-1 (08:30-10:00)",{"$f":"VLOOKUP(A38,logistics!G:I,2,0)","v":"Versailles B"},{"$f":"VLOOKUP(A38,logistics!G:I,3,0)","v":"SEC / MAS"},"<device configuration>",{"$f":"VLOOKUP(D38,AllDocs!A:D,2,0)","v":{"$error":"#N/A"}},{"$f":"VLOOKUP(D38,AllDocs!A:D,3,0)","v":{"$error":"#N/A"}},{"$f":"VLOOKUP(D38,AllDocs!A:D,4,0)","v":{"$error":"#N/A"}},null,{"$f":"VLOOKUP(D38,AllDocs!A:F,6,0)","v":{"$error":"#N/A"}}]
["Thu-1 (08:30-10:00)",{"$f":"VLOOKUP(A39,logistics!G:I,2,0)","v":"Versailles B"},{"$f":"VLOOKUP(A39,logistics!G:I,3,0)","v":"SEC / MAS"},"MAS-2017-0025",{"$f":"VLOOKUP(D39,AllDocs!A:D,2,0)","v":"CR DevCfg registration links to authProfile"},{"$f":"VLOOKUP(D39,AllDocs!A:D,3,0)","v":"Qualcomm Inc. (TIA)"},{"$f":"VLOOKUP(D39,AllDocs!A:D,4,0)","v":"2017-02-13T12:32:24"},"Noted",{"$f":"VLOOKUP(D39,AllDocs!A:F,6,0)","v":"CR"},"TS-0022 (WI-0030)",2,null,"to be merged with 0022R03"]
["Thu-1 (08:30-10:00)",{"$f":"VLOOKUP(A40,logistics!G:I,2,0)","v":"Versailles B"},{"$f":"VLOOKUP(A40,logistics!G:I,3,0)","v":"SEC / MAS"},"MAS-2017-0024",{"$f":"VLOOKUP(D40,AllDocs!A:D,2,0)","v":"CR_DevCfg_dataCollection_links_to_ESPrim_authProfile"},{"$f":"VLOOKUP(D40,AllDocs!A:D,3,0)","v":"Qualcomm Inc. (TIA)"},{"$f":"VLOOKUP(D40,AllDocs!A:D,4,0)","v":"2017-02-13T12:25:03"},"Noted",{"$f":"VLOOKUP(D40,AllDocs!A:F,6,0)","v":"CR"},"TS-0022 (WI-0030)",2]
["Thu-1 (08:30-10:00)",{"$f":"VLOOKUP(A41,logistics!G:I,2,0)","v":"Versailles B"},{"$f":"VLOOKUP(A41,logistics!G:I,3,0)","v":"SEC / MAS"},"MAS-2017-0024R01",{"$f":"VLOOKUP(D41,AllDocs!A:D,2,0)","v":"CR_DevCfg_dataCollection_links_to_ESPrim_authProfile"},{"$f":"VLOOKUP(D41,AllDocs!A:D,3,0)","v":"Qualcomm Inc. (TIA)"},{"$f":"VLOOKUP(D41,AllDocs!A:D,4,0)","v":"2017-02-14T03:43:07"},"Agreed",{"$f":"VLOOKUP(D41,AllDocs!A:F,6,0)","v":"CR"},"TS-0022 (WI-0030)",2]
["Thu-1 (08:30-10:00)",{"$f":"VLOOKUP(A42,logistics!G:I,2,0)","v":"Versailles B"},{"$f":"VLOOKUP(A42,logistics!G:I,3,0)","v":"SEC / MAS"},"MAS-2017-0023",{"$f":"VLOOKUP(D42,AllDocs!A:D,2,0)","v":"CR_DevCfg-V0_9_0 Reorganising clause 7"},{"$f":"VLOOKUP(D42,AllDocs!A:D,3,0)","v":"Qualcomm Inc. (TIA)"},{"$f":"VLOOKUP(D42,AllDocs!A:D,4,0)","v":"2017-02-13T12:08:15"},"Agreed",{"$f":"VLOOKUP(D42,AllDocs!A:F,6,0)","v":"CR"},"TS-0022 (WI-0030)",2]
["Thu-1 (08:30-10:00)",{"$f":"VLOOKUP(A43,logistics!G:I,2,0)","v":"Versailles B"},{"$f":"VLOOKUP(A43,logistics!G:I,3,0)","v":"SEC / MAS"},"MAS-2017-0022",{"$f":"VLOOKUP(D43,AllDocs!A:D,2,0)","v":"CR DevCfg Extension of merging AuthProfiles"},{"$f":"VLOOKUP(D43,AllDocs!A:D,3,0)","v":"Qualcomm Inc. (TIA)"},{"$f":"VLOOKUP(D43,AllDocs!A:D,4,0)","v":"2017-02-09T17:34:44"},"Noted",{"$f":"VLOOKUP(D43,AllDocs!A:F,6,0)","v":"CR"},"TS-0022 (WI-0030)",2]
["Thu-1 (08:30-10:00)",{"$f":"VLOOKUP(A44,logistics!G:I,2,0)","v":"Versailles B"},{"$f":"VLOOKUP(A44,logistics!G:I,3,0)","v":"SEC / MAS"},"MAS-2017-0022R01",{"$f":"VLOOKUP(D44,AllDocs!A:D,2,0)","v":"CR DevCfg Extension of merging AuthProfiles"},{"$f":"VLOOKUP(D44,AllDocs!A:D,3,0)","v":"Qualcomm Inc. (TIA)"},{"$f":"VLOOKUP(D44,AllDocs!A:D,4,0)","v":"2017-02-10T05:22:22"},"Noted",{"$f":"VLOOKUP(D44,AllDocs!A:F,6,0)","v":"CR"},"TS-0022 (WI-0030)",2]
["Thu-1 (08:30-10:00)",{"$f":"VLOOKUP(A45,logistics!G:I,2,0)","v":"Versailles B"},{"$f":"VLOOKUP(A45,logistics!G:I,3,0)","v":"SEC / MAS"},"MAS-2017-0022R02",{"$f":"VLOOKUP(D45,AllDocs!A:D,2,0)","v":"CR DevCfg Extension of merging AuthProfiles"},{"$f":"VLOOKUP(D45,AllDocs!A:D,3,0)","v":"Qualcomm Inc. (TIA)"},{"$f":"VLOOKUP(D45,AllDocs!A:D,4,0)","v":"2017-02-13T15:36:06"},"Noted",{"$f":"VLOOKUP(D45,AllDocs!A:F,6,0)","v":"CR"},"TS-0022 (WI-0030)",2,null,"<mgmtObj> used for bootstraping devices to communicate with MEF is removed, and will be covered in TS-0032.\nquestion: credentials no longer exist? - should be part of [authenticationProfile], need to check. \nComments: should be clear [trustAnchorCred] is only used for [authenticationProfile] using certificates (e.g. constrained by SUID)\nRevision expected on Friday morning."]
["Thu-2 (10:30-12:00)",{"$f":"VLOOKUP(A46,logistics!G:I,2,0)","v":"Chateau Rothschild"},{"$f":"VLOOKUP(A46,logistics!G:I,3,0)","v":"MAS-adhoc"},"<skiped>",{"$f":"VLOOKUP(D46,AllDocs!A:D,2,0)","v":{"$error":"#N/A"}},{"$f":"VLOOKUP(D46,AllDocs!A:D,3,0)","v":{"$error":"#N/A"}},{"$f":"VLOOKUP(D46,AllDocs!A:D,4,0)","v":{"$error":"#N/A"}},null,{"$f":"VLOOKUP(D46,AllDocs!A:F,6,0)","v":{"$error":"#N/A"}}]
["Thu-3 (13:30-15:00)",{"$f":"VLOOKUP(A47,logistics!G:I,2,0)","v":"Versailles B"},{"$f":"VLOOKUP(A47,logistics!G:I,3,0)","v":"MAS"},"<revisions>",{"$f":"VLOOKUP(D47,AllDocs!A:D,2,0)","v":{"$error":"#N/A"}},{"$f":"VLOOKUP(D47,AllDocs!A:D,3,0)","v":{"$error":"#N/A"}},{"$f":"VLOOKUP(D47,AllDocs!A:D,4,0)","v":{"$error":"#N/A"}},null,{"$f":"VLOOKUP(D47,AllDocs!A:F,6,0)","v":{"$error":"#N/A"}}]
["Thu-3 (13:30-15:00)",{"$f":"VLOOKUP(A48,logistics!G:I,2,0)","v":"Versailles B"},{"$f":"VLOOKUP(A48,logistics!G:I,3,0)","v":"MAS"},"MAS-2017-0015R01",{"$f":"VLOOKUP(D48,AllDocs!A:D,2,0)","v":"HAIM_modification_for_Washer_model"},{"$f":"VLOOKUP(D48,AllDocs!A:D,3,0)","v":"LG Electronics"},{"$f":"VLOOKUP(D48,AllDocs!A:D,4,0)","v":"2017-02-15T01:50:19"},"Noted",{"$f":"VLOOKUP(D48,AllDocs!A:F,6,0)","v":"CR"},"TS-0023 (WI-0056)",3]
["Thu-3 (13:30-15:00)",{"$f":"VLOOKUP(A49,logistics!G:I,2,0)","v":"Versailles B"},{"$f":"VLOOKUP(A49,logistics!G:I,3,0)","v":"MAS"},"MAS-2017-0015R02",{"$f":"VLOOKUP(D49,AllDocs!A:D,2,0)","v":"HAIM_modification_for_Washer_model"},{"$f":"VLOOKUP(D49,AllDocs!A:D,3,0)","v":"LG Electronics"},{"$f":"VLOOKUP(D49,AllDocs!A:D,4,0)","v":"2017-02-16T02:41:57"},"Agreed",{"$f":"VLOOKUP(D49,AllDocs!A:F,6,0)","v":"CR"},"TS-0023 (WI-0056)",3]
["Thu-3 (13:30-15:00)",{"$f":"VLOOKUP(A50,logistics!G:I,2,0)","v":"Versailles B"},{"$f":"VLOOKUP(A50,logistics!G:I,3,0)","v":"MAS"},"MAS-2017-0021",{"$f":"VLOOKUP(D50,AllDocs!A:D,2,0)","v":"Response_to_oneM2M_LS_TP-2016-0334R03"},{"$f":"VLOOKUP(D50,AllDocs!A:D,3,0)","v":"OCF"},{"$f":"VLOOKUP(D50,AllDocs!A:D,4,0)","v":"2017-02-09T16:06:21"},"Noted",{"$f":"VLOOKUP(D50,AllDocs!A:F,6,0)","v":"LS"}]
["Thu-3 (13:30-15:00)",{"$f":"VLOOKUP(A51,logistics!G:I,2,0)","v":"Versailles B"},{"$f":"VLOOKUP(A51,logistics!G:I,3,0)","v":"MAS"},"TP-2017-0029",{"$f":"VLOOKUP(D51,AllDocs!A:D,2,0)","v":"Liaison_Response_to_OCF"},{"$f":"VLOOKUP(D51,AllDocs!A:D,3,0)","v":"LG Electronics"},{"$f":"VLOOKUP(D51,AllDocs!A:D,4,0)","v":"2017-02-16T21:48:23"},"Noted",{"$f":"VLOOKUP(D51,AllDocs!A:F,6,0)","v":"LS"},null,3,null,"Agree to send to TP for approval"]
["Thu-3 (13:30-15:00)",{"$f":"VLOOKUP(A52,logistics!G:I,2,0)","v":"Versailles B"},{"$f":"VLOOKUP(A52,logistics!G:I,3,0)","v":"MAS"},"MAS-2017-0011R01",{"$f":"VLOOKUP(D52,AllDocs!A:D,2,0)","v":"CR TS-0012 Introduction of class VariableConversion to support device abstraction"},{"$f":"VLOOKUP(D52,AllDocs!A:D,3,0)","v":"NEC"},{"$f":"VLOOKUP(D52,AllDocs!A:D,4,0)","v":"2017-02-15T19:31:57"},"Agreed",{"$f":"VLOOKUP(D52,AllDocs!A:F,6,0)","v":"CR"},"TS-0012 (WI-0063)",3]
["Thu-3 (13:30-15:00)",{"$f":"VLOOKUP(A53,logistics!G:I,2,0)","v":"Versailles B"},{"$f":"VLOOKUP(A53,logistics!G:I,3,0)","v":"MAS"},"MAS-2017-0012",{"$f":"VLOOKUP(D53,AllDocs!A:D,2,0)","v":"CR TS-0030 Specification of an Abstraction Application Entity for device abstraction"},{"$f":"VLOOKUP(D53,AllDocs!A:D,3,0)","v":"NEC"},{"$f":"VLOOKUP(D53,AllDocs!A:D,4,0)","v":"2017-02-03T22:02:01"},"Noted",{"$f":"VLOOKUP(D53,AllDocs!A:F,6,0)","v":"CR"},"TS-0030 (WI-0063)",3,null,"need more time to discuss."]
["Thu-3 (13:30-15:00)",{"$f":"VLOOKUP(A54,logistics!G:I,2,0)","v":"Versailles B"},{"$f":"VLOOKUP(A54,logistics!G:I,3,0)","v":"MAS"},"MAS-2017-0017",{"$f":"VLOOKUP(D54,AllDocs!A:D,2,0)","v":"Semantic TS skeleton proposal"},{"$f":"VLOOKUP(D54,AllDocs!A:D,3,0)","v":"Convida"},{"$f":"VLOOKUP(D54,AllDocs!A:D,4,0)","v":"2017-02-06T14:37:34"},"Noted",{"$f":"VLOOKUP(D54,AllDocs!A:F,6,0)","v":"INC"},null,3]
["Thu-3 (13:30-15:00)",{"$f":"VLOOKUP(A55,logistics!G:I,2,0)","v":"Versailles B"},{"$f":"VLOOKUP(A55,logistics!G:I,3,0)","v":"MAS"},"MAS-2017-0017R01",{"$f":"VLOOKUP(D55,AllDocs!A:D,2,0)","v":{"$error":"#N/A"}},{"$f":"VLOOKUP(D55,AllDocs!A:D,3,0)","v":{"$error":"#N/A"}},{"$f":"VLOOKUP(D55,AllDocs!A:D,4,0)","v":{"$error":"#N/A"}},"Agreed",{"$f":"VLOOKUP(D55,AllDocs!A:F,6,0)","v":{"$error":"#N/A"}},null,3,null,"propose to add InterDigital as co-editor.\nTo be uploaded to WP area to get the TS number."]
["Thu-3 (13:30-15:00)",{"$f":"VLOOKUP(A56,logistics!G:I,2,0)","v":"Versailles B"},{"$f":"VLOOKUP(A56,logistics!G:I,3,0)","v":"MAS"},"MAS-2017-0013R01",{"$f":"VLOOKUP(D56,AllDocs!A:D,2,0)","v":"Semantic Mashup Procedures"},{"$f":"VLOOKUP(D56,AllDocs!A:D,3,0)","v":"Convida, China Unicom"},{"$f":"VLOOKUP(D56,AllDocs!A:D,4,0)","v":"2017-02-16T02:27:22"},"Agreed",{"$f":"VLOOKUP(D56,AllDocs!A:F,6,0)","v":"CR"},"TR-0033 (WI-0053)",3]
["Thu-3 (13:30-15:00)",{"$f":"VLOOKUP(A57,logistics!G:I,2,0)","v":"Versailles B"},{"$f":"VLOOKUP(A57,logistics!G:I,3,0)","v":"MAS"},"MAS-2017-0014R01",{"$f":"VLOOKUP(D57,AllDocs!A:D,2,0)","v":"Generic Procedure for Mapping of LWM2M Objects"},{"$f":"VLOOKUP(D57,AllDocs!A:D,3,0)","v":"Convida Wireless"},{"$f":"VLOOKUP(D57,AllDocs!A:D,4,0)","v":"2017-02-16T07:28:36"},"Agreed",{"$f":"VLOOKUP(D57,AllDocs!A:F,6,0)","v":"CR"},"TR-0031 (WI-0052)",3,null,"objectID' already supports URI to XSDs in the latest TR, need to be synced in TS-0001 in the future.\nAI: Dale (InterDigital) to sync with the lasted LWM2M 1.0 Objects, and provide specific version number in the references.\nAI: Dale (InterDigital) in mapping rules need to resource type list, objectlink, multi instance\nAI: Dale  (InterDigital) provide more examples later."]
["Thu-3 (13:30-15:00)",{"$f":"VLOOKUP(A58,logistics!G:I,2,0)","v":"Versailles B"},{"$f":"VLOOKUP(A58,logistics!G:I,3,0)","v":"MAS"},"MAS-2016-0288R01",{"$f":"VLOOKUP(D58,AllDocs!A:D,2,0)","v":"SDT - Proposed changes for V4.0"},{"$f":"VLOOKUP(D58,AllDocs!A:D,3,0)","v":"Andreas Kraft (Deutsche Telekom)"},{"$f":"VLOOKUP(D58,AllDocs!A:D,4,0)","v":"2017-02-16T22:26:28"},"Noted",{"$f":"VLOOKUP(D58,AllDocs!A:F,6,0)","v":"INC"},null,null,null,"re-lisencing (to BSD3) has legal complications. Need more discussion.\nAI: Andears (DT) work with TP officers on the re-licensing of SDT in oneM2M."]
["Thu-3 (13:30-15:00)",{"$f":"VLOOKUP(A59,logistics!G:I,2,0)","v":"Versailles B"},{"$f":"VLOOKUP(A59,logistics!G:I,3,0)","v":"MAS"},"TP-2017-0027R01",{"$f":"VLOOKUP(D59,AllDocs!A:D,2,0)","v":"Reply_to_OMA_CDWG_about_their_proposal"},{"$f":"VLOOKUP(D59,AllDocs!A:D,3,0)","v":"NTT, NTT docomo"},{"$f":"VLOOKUP(D59,AllDocs!A:D,4,0)","v":"2017-02-16T10:17:15"},"Noted",{"$f":"VLOOKUP(D59,AllDocs!A:F,6,0)","v":"LS"}]
["Thu-3 (13:30-15:00)",{"$f":"VLOOKUP(A60,logistics!G:I,2,0)","v":"Versailles B"},{"$f":"VLOOKUP(A60,logistics!G:I,3,0)","v":"MAS"},"TP-2017-0027R02",{"$f":"VLOOKUP(D60,AllDocs!A:D,2,0)","v":"Reply_to_OMA_CDWG_about_their_proposal"},{"$f":"VLOOKUP(D60,AllDocs!A:D,3,0)","v":"NTT, NTT docomo"},{"$f":"VLOOKUP(D60,AllDocs!A:D,4,0)","v":"2017-02-16T23:11:05"},"Noted",{"$f":"VLOOKUP(D60,AllDocs!A:F,6,0)","v":"LS"},null,null,null,"Send to TP for approval"]
["Thu-4 (15:30-17:00)",{"$f":"VLOOKUP(A61,logistics!G:I,2,0)","v":"Versailles A"},{"$f":"VLOOKUP(A61,logistics!G:I,3,0)","v":"ARC / MAS"},"<not needed>",{"$f":"VLOOKUP(D61,AllDocs!A:D,2,0)","v":{"$error":"#N/A"}},{"$f":"VLOOKUP(D61,AllDocs!A:D,3,0)","v":{"$error":"#N/A"}},{"$f":"VLOOKUP(D61,AllDocs!A:D,4,0)","v":{"$error":"#N/A"}},null,{"$f":"VLOOKUP(D61,AllDocs!A:F,6,0)","v":{"$error":"#N/A"}}]
["Thu-6 (18:30-20:00)",{"$f":"VLOOKUP(A62,logistics!G:I,2,0)","v":"Versailles B"},{"$f":"VLOOKUP(A62,logistics!G:I,3,0)","v":"MAS"},"<not needed>",{"$f":"VLOOKUP(D62,AllDocs!A:D,2,0)","v":{"$error":"#N/A"}},{"$f":"VLOOKUP(D62,AllDocs!A:D,3,0)","v":{"$error":"#N/A"}},{"$f":"VLOOKUP(D62,AllDocs!A:D,4,0)","v":{"$error":"#N/A"}},null,{"$f":"VLOOKUP(D62,AllDocs!A:F,6,0)","v":{"$error":"#N/A"}}]
["Fri-2 (10:30-12:00)",{"$f":"VLOOKUP(A63,logistics!G:I,2,0)","v":"Versailles A"},{"$f":"VLOOKUP(A63,logistics!G:I,3,0)","v":"SEC / MAS"},"<device configuration>",{"$f":"VLOOKUP(D63,AllDocs!A:D,2,0)","v":{"$error":"#N/A"}},{"$f":"VLOOKUP(D63,AllDocs!A:D,3,0)","v":{"$error":"#N/A"}},{"$f":"VLOOKUP(D63,AllDocs!A:D,4,0)","v":{"$error":"#N/A"}},null,{"$f":"VLOOKUP(D63,AllDocs!A:F,6,0)","v":{"$error":"#N/A"}}]
[null,{"$f":"VLOOKUP(A64,logistics!G:I,2,0)","v":{"$error":"#N/A"}},{"$f":"VLOOKUP(A64,logistics!G:I,3,0)","v":{"$error":"#N/A"}},"MAS-2017-0022R02",{"$f":"VLOOKUP(D64,AllDocs!A:D,2,0)","v":"CR DevCfg Extension of merging AuthProfiles"},{"$f":"VLOOKUP(D64,AllDocs!A:D,3,0)","v":"Qualcomm Inc. (TIA)"},{"$f":"VLOOKUP(D64,AllDocs!A:D,4,0)","v":"2017-02-13T15:36:06"},null,{"$f":"VLOOKUP(D64,AllDocs!A:F,6,0)","v":"CR"},null,2]
[null,{"$f":"VLOOKUP(A65,logistics!G:I,2,0)","v":{"$error":"#N/A"}},{"$f":"VLOOKUP(A65,logistics!G:I,3,0)","v":{"$error":"#N/A"}},null,{"$f":"VLOOKUP(D65,AllDocs!A:D,2,0)","v":{"$error":"#N/A"}},{"$f":"VLOOKUP(D65,AllDocs!A:D,3,0)","v":{"$error":"#N/A"}},{"$f":"VLOOKUP(D65,AllDocs!A:D,4,0)","v":{"$error":"#N/A"}},null,{"$f":"VLOOKUP(D65,AllDocs!A:F,6,0)","v":{"$error":"#N/A"}}]
[null,{"$f":"VLOOKUP(A66,logistics!G:I,2,0)","v":{"$error":"#N/A"}},{"$f":"VLOOKUP(A66,logistics!G:I,3,0)","v":{"$error":"#N/A"}},null,{"$f":"VLOOKUP(D66,AllDocs!A:D,2,0)","v":{"$error":"#N/A"}},{"$f":"VLOOKUP(D66,AllDocs!A:D,3,0)","v":{"$error":"#N/A"}},{"$f":"VLOOKUP(D66,AllDocs!A:D,4,0)","v":{"$error":"#N/A"}},null,{"$f":"VLOOKUP(D66,AllDocs!A:F,6,0)","v":{"$error":"#N/A"}}]
[null,{"$f":"VLOOKUP(A67,logistics!G:I,2,0)","v":{"$error":"#N/A"}},{"$f":"VLOOKUP(A67,logistics!G:I,3,0)","v":{"$error":"#N/A"}},null,{"$f":"VLOOKUP(D67,AllDocs!A:D,2,0)","v":{"$error":"#N/A"}},{"$f":"VLOOKUP(D67,AllDocs!A:D,3,0)","v":{"$error":"#N/A"}},{"$f":"VLOOKUP(D67,AllDocs!A:D,4,0)","v":{"$error":"#N/A"}},null,{"$f":"VLOOKUP(D67,AllDocs!A:F,6,0)","v":{"$error":"#N/A"}}]
[null,{"$f":"VLOOKUP(A68,logistics!G:I,2,0)","v":{"$error":"#N/A"}},{"$f":"VLOOKUP(A68,logistics!G:I,3,0)","v":{"$error":"#N/A"}},null,{"$f":"VLOOKUP(D68,AllDocs!A:D,2,0)","v":{"$error":"#N/A"}},{"$f":"VLOOKUP(D68,AllDocs!A:D,3,0)","v":{"$error":"#N/A"}},{"$f":"VLOOKUP(D68,AllDocs!A:D,4,0)","v":{"$error":"#N/A"}},null,{"$f":"VLOOKUP(D68,AllDocs!A:F,6,0)","v":{"$error":"#N/A"}}]
[null,{"$f":"VLOOKUP(A69,logistics!G:I,2,0)","v":{"$error":"#N/A"}},{"$f":"VLOOKUP(A69,logistics!G:I,3,0)","v":{"$error":"#N/A"}},null,{"$f":"VLOOKUP(D69,AllDocs!A:D,2,0)","v":{"$error":"#N/A"}},{"$f":"VLOOKUP(D69,AllDocs!A:D,3,0)","v":{"$error":"#N/A"}},{"$f":"VLOOKUP(D69,AllDocs!A:D,4,0)","v":{"$error":"#N/A"}},null,{"$f":"VLOOKUP(D69,AllDocs!A:F,6,0)","v":{"$error":"#N/A"}}]
[null,{"$f":"VLOOKUP(A70,logistics!G:I,2,0)","v":{"$error":"#N/A"}},{"$f":"VLOOKUP(A70,logistics!G:I,3,0)","v":{"$error":"#N/A"}},null,{"$f":"VLOOKUP(D70,AllDocs!A:D,2,0)","v":{"$error":"#N/A"}},{"$f":"VLOOKUP(D70,AllDocs!A:D,3,0)","v":{"$error":"#N/A"}},{"$f":"VLOOKUP(D70,AllDocs!A:D,4,0)","v":{"$error":"#N/A"}},null,{"$f":"VLOOKUP(D70,AllDocs!A:F,6,0)","v":{"$error":"#N/A"}}]

{"sheet":"logistics","index":1,"n_rows":32,"n_cols":12,"rows_kept":32,"cut":false,"hidden":false,"merged":[]}
["WeekDay","SlotTime","Day","Slot","Time","AllSlots","MAS Slots","Rooms","WGs","WIs","Short Name","Deadline (ETSI Time = UTC+1)"]
["Mon","9:00-10:30","Mon",1,"9:00-10:30",{"$f":"CONCATENATE(C2,\"-\",D2,\" (\",E2,\")\")","v":"Mon-1 (9:00-10:30)"},{"$f":"IF(COUNTA(I2),CELL(\"contents\",F2),\"\")","v":""},null,null,"TR-0001 (WI-0015)","Use Case Continuation","2017-02-06T18:00:00"]
["Tue","10:30-11:00","Mon",2,"11:00-12:30","Mon-2 (11:00-12:30)",{"$f":"IF(COUNTA(I3),CELL(\"contents\",F3),\"\")","v":""},null,null,"TR-0007 (WI-0053)","Semantic Study"]
["Wed","11:00-12:30","Mon",3,"13:30-15:00",{"$f":"CONCATENATE(C4,\"-\",D4,\" (\",E4,\")\")","v":"Mon-3 (13:30-15:00)"},"",null,null,"TR-0014 (WI-0018)","oneM2M AllJoyn Interworking"]
["Thu","12:30-13:30","Mon",4,"15:30-17:00",{"$f":"CONCATENATE(C5,\"-\",D5,\" (\",E5,\")\")","v":"Mon-4 (15:30-17:00)"},"",null,null,"TR-0017 (WI-0017)","Home Domain Abstract Information Model"]
["Fri","13:30-15:00","Mon",5,"17:00-18:30","Mon-5 (17:00-18:30)","",null,null,"TR-0022 (WI-0043)","Continuation & integration of HGI Smart Home activities"]
[null,"15:00-15:30","Tue",1,"08:30-10:00","Tue-1 (08:30-10:00)","",null,null,"TR-0031 (WI-0052)","LWM2M DM Interworking Enhancement"]
[null,"15:30-17:00","Tue",2,"10:30-12:00","Tue-2 (10:30-12:00)","",null,null,"TR-0033 (WI-0053)","Study on Enhanced Semantic Enablement"]
[null,"17:00-18:30","Tue",3,"13:30-15:00","Tue-3 (13:30-15:00)","Tue-3 (13:30-15:00)","Chateau Rothschild","MAS-adhoc","TS-0001 (WI-0002)","Architecture"]
[null,null,"Tue",4,"15:30-17:00","Tue-4 (15:30-17:00)","Tue-4 (15:30-17:00)","Versailles A","MAS","TS-0002 (WI-0001)","Requirement"]
[null,"08:30-10:00","Tue",5,"17:00-18:30","Tue-5 (17:00-18:30)","",null,null,"TS-0004 (WI-0009)","Protocol Core"]
[null,"10:00-10:30","Wed",1,"08:30-10:00","Wed-1 (08:30-10:00)","Wed-1 (08:30-10:00)","Versailles B","MAS","TS-0005 (WI-0010)","OMA Mapping"]
[null,"10:30-12:00","Wed",2,"10:30-12:00","Wed-2 (10:30-12:00)","Wed-2 (10:30-12:00)","Versailles A","ARC / MAS","TS-0006 (WI-0010)","BBF Mapping"]
[null,"12:00-13:30","Wed",3,"13:30-15:00","Wed-3 (13:30-15:00)","",null,null,"TS-0007 (WI-0011)","SOA Architecture"]
[null,"13:30-15:00","Wed",4,"15:30-17:00","Wed-4 (15:30-17:00)","",null,null,"TS-0009 (WI-0013)","HTTP Binding"]
[null,"15:00-15:30","Wed",5,"17:00-18:30","Wed-5 (17:00-18:30)","Wed-5 (17:00-18:30)","Chateau Rothschild","MAS-adhoc","TS-0012 (WI-0063)","oneM2M Base Ontology"]
[null,"15:30-17:00","Thu",1,"08:30-10:00","Thu-1 (08:30-10:00)","Thu-1 (08:30-10:00)","Versailles B","SEC / MAS","TS-0014 (WI-0024)","LWM2M_Interworking"]
[null,"17:00-18:30","Thu",2,"10:30-12:00","Thu-2 (10:30-12:00)","Thu-2 (10:30-12:00)","Chateau Rothschild","MAS-adhoc","TS-0022 (WI-0030)","Field Device Configuration "]
[null,null,"Thu",3,"13:30-15:00","Thu-3 (13:30-15:00)","Thu-3 (13:30-15:00)","Versailles B","MAS","TS-0023 (WI-0056)","Home Appliances Information Model and Mapping"]
[null,null,"Thu",4,"15:30-17:00","Thu-4 (15:30-17:00)","Thu-4 (15:30-17:00)","Versailles A","ARC / MAS","TS-0030 (WI-0063)","Generic Interworking"]
[null,null,"Thu",5,"17:00-18:30","Thu-5 (17:00-18:30)","",null,null,"Generic"]
[null,null,"Thu",6,"18:30-20:00",{"$f":"CONCATENATE(C22,\"-\",D22,\" (\",E22,\")\")","v":"Thu-6 (18:30-20:00)"},{"$f":"IF(COUNTA(I22),CELL(\"contents\",F22),\"\")","v":"Thu-6 (18:30-20:00)"},"Versailles B","MAS","Generic"]
[null,null,"Fri",1,"08:30-10:00","Fri-1 (08:30-10:00)",""]
[null,null,"Fri",2,"10:30-12:00","Fri-2 (10:30-12:00)","Fri-2 (10:30-12:00)","Versailles A","SEC / MAS"]
[null,null,"Fri",3,"13:30-15:00","Fri-3 (13:30-15:00)",""]
[null,null,"Fri",4,"15:30-17:00","Fri-4 (15:30-17:00)",""]
[null,null,null,null,null,"- ()",""]
[null,null,null,null,null,null,""]
[null,null,null,null,null,null,""]
[null,null,null,null,null,null,{"$f":"IF(COUNTA(I30),CELL(\"contents\",F30),\"\")","v":""}]
[null,null,null,null,null,null,""]
[null,null,null,null,null,null,""]

{"sheet":"AllDocs","index":2,"n_rows":203,"n_cols":8,"rows_kept":203,"cut":false,"hidden":false,"merged":[]}
["SHORT DOC NB","SHORTNAME","SOURCE","UPLOADED","STATUS","DOC TYPE","VERS","MEETING"]
["TP-2016-0332","TP27_Vancouver_Invitation","Victoria Mitchell, Secretariat","2016-11-03T19:32:09","Noted","INV",null,"TP 27"]
["TP-2016-0332R01","TP27_Vancouver_Invitation","Victoria Mitchell, Secretariat","2016-11-30T16:30:31","Noted","INV",null,"TP 27"]
["TP-2016-0382","Northbound SCEF API standardisation requested by oneM2M","3GPP SA","2016-12-22T08:48:15","Noted","LS",null,"TP 27"]
["MAS-2016-0292","section-Toy_in_TS-0023","motionblue,blockToy","2016-12-28T15:40:38","Noted","CR",null,"MAS 27"]
["MAS-2017-0002","TS-0006-Data_collection_schedules","Timothy Carey, Nokia","2017-01-09T17:14:19","Agreed","INC",null,"MAS 27"]
["TP-2017-0001","Invitation to TP28 in Sophia Antipolis","Karen Hughes, ETSI","2017-01-11T14:05:03","Draft","INV",null,"TP 27"]
["TP-2017-0002","Comments on the oneM2M Home Appliance Information Model and Mapping","OMA CD","2017-01-11T14:51:51","Noted","LS",null,"TP 27"]
["MAS-2017-0006","Comments on the oneM2M Home Appliance Information Model and Mapping","OMA CD","2017-01-11T14:56:17","Noted","LS",null,"MAS 27"]
["TP-2017-0003","Voting List for TP27","Karen Hughes, Secretariat","2017-01-20T15:28:32","Approved","INC",null,"TP 27"]
["TST-2017-0025","TS-0013-Interoperability_Testing-V1_3_0","Laurent Velez, ETSI","2017-01-25T15:51:23","Draft","INC",null,"TST 27"]
["ARC-2016-0468R03","group_multicast_presentation","Huawei Technologies Co., Ltd.","2017-01-26T01:37:59","Noted","INC",null,"ARC 27"]
["TP-2017-0004","New WI for W3C WoT IWK","Yongjing Zhang (Huawei)","2017-01-26T02:50:32","Noted","INC",null,"TP 27"]
["TP-2017-0004R01","New WI for W3C WoT IWK","Yongjing Zhang (Huawei)","2017-01-26T08:09:06","Noted","INC",null,"TP 27"]
["TST-2017-0026","TS-0013 update of the TD format","Laurent Velez, ETSI","2017-01-31T14:35:08","Draft","INC",null,"TST 27"]
["ARC-2017-0036","group_multicast_solution_resource_update","Huawei Technologies Co., Ltd.","2017-02-03T01:51:36","Draft","CR",null,"ARC 27"]
["ARC-2017-0037","group_multicast_solution_operation_update","Huawei Technologies Co., Ltd.","2017-02-03T01:54:45","Draft","CR",null,"ARC 27"]
["MAS-2017-0009R02","Adding healthcare device model of OMA CDWG to TS-0023","NTT, NTT DOCOMO","2017-02-03T08:05:24","Draft","CR",null,"MAS 27"]
["REQ-2017-0001","Autonomous driving","M.Djurica (TNO)","2017-02-03T13:45:20","Draft","INC",null,"REQ 27"]
["MAS-2017-0011","CR TS-0012 Introduction of class VariableConversion to support device abstraction","NEC","2017-02-03T22:01:33","Noted","CR",null,"MAS 27"]
["MAS-2017-0012","CR TS-0030 Specification of an Abstraction Application Entity for device abstraction","NEC","2017-02-03T22:02:01","Noted","CR",null,"MAS 27"]
["ARC-2017-0038","TS0001_semanticDescriptor for mgmtObj R3","Yongjing Zhang (Huawei)","2017-02-04T07:40:39","Draft","CR",null,"ARC 27"]
["TP-2017-0004R02","New WI for W3C WoT IWK","Yongjing Zhang (Huawei)","2017-02-04T07:43:09","Noted","INC",null,"TP 27"]
["ARC-2017-0040","features_catalog","Huawei Technologies Co., Ltd.","2017-02-04T08:59:47","Draft","INC",null,"ARC 27"]
["ARC-2017-0041","editorial_correction","ZTE","2017-02-04T09:32:24","Draft","CR",null,"ARC 27"]
["ARC-2017-0042","TS0001 clause 10.2.8 ref num bug fix R3","Yongjing Zhang (Huawei)","2017-02-04T09:58:48","Draft","CR",null,"ARC 27"]
["TST-2017-0027","Skeleton of TR-00vv Developer's Guide on SDT","Patricia Martigne (Orange)","2017-02-04T23:06:39","Draft","INC",null,"TST 27"]
["ARC-2017-0043","Skeleton of  heterogeneous identification service","Computer Network Information Center, Chinese Academy of Sciences (CNIC)","2017-02-05T14:25:13","Draft","INC",null,"ARC 27"]
["REQ-2017-0002","Use Case on Heterogeneous Identification Service","Computer Network Information Center, Chinese Academy of Sciences (CNIC)","2017-02-05T14:33:14","Draft","INC",null,"REQ 27"]
["MAS-2017-0014","Generic Procedure for Mapping of LWM2M Objects","Convida Wireless","2017-02-05T22:29:51","Noted","CR",null,"MAS 27"]
["ARC-2017-0053","CR-Service_Layer_Forwarding_R3","Convida Wireless","2017-02-05T22:54:24","Draft","CR",null,"ARC 27"]
["ARC-2017-0054","Text Correction on ACP Introduction","Datang","2017-02-05T23:08:15","Draft","CR",null,"ARC 27"]
["ARC-2017-0055","General Description of Distributed Authorization","Datang","2017-02-05T23:11:01","Draft","CR",null,"ARC 27"]
["ARC-2017-0056","Functional Architecture Specifications for Distributed Authorization","Datang","2017-02-05T23:12:51","Draft","CR",null,"ARC 27"]
["SEC-2017-0007","Specification for Distributed Authorization","Datang","2017-02-05T23:19:54","Draft","CR",null,"SEC 27"]
["ARC-2017-0057","TR-0024_GBA","Convida","2017-02-05T23:29:20","Draft","CR",null,"ARC 27"]
["MAS-2017-0013","Semantic Mashup Procedures","Convida, China Unicom","2017-02-05T23:54:21","Draft","CR",null,"MAS 27"]
["MAS-2017-0005R03","CR_DevCfg_merging_AuthProfiles","Fujitsu","2017-02-06T00:07:14","Draft","CR",null,"MAS 27"]
["ARC-2017-0058","TS-0001_Functional_Architecture-V3_3_0","ZTE","2017-02-06T00:57:33","Draft","INC",null,"ARC 27"]
["ARC-2017-0059","TR-0024-SCEF_API_Requirements(Group message Delivery)","Huawei Technologies Co., Ltd.","2017-02-06T01:07:34","Draft","CR",null,"ARC 27"]
["ARC-2017-0060","TR-0024-SCEF_API_Requirements(Location Reporting)","Huawei Technologies Co., Ltd.","2017-02-06T01:09:27","Draft","CR",null,"ARC 27"]
["ARC-2017-0061","TR-0024-SCEF_API_Requirements(UE reachability)","Huawei Technologies Co., Ltd.","2017-02-06T01:12:11","Draft","CR",null,"ARC 27"]
["ARC-2017-0062","TS-0001_Functional_Architecture-V2_12_1","ZTE","2017-02-06T01:13:20","Draft","INC",null,"ARC 27"]
["ARC-2017-0063","Functional_Architecture-V1_15_1","ZTE","2017-02-06T01:34:33","Draft","INC",null,"ARC 27"]
["MAS-2017-0015","HAIM_modification_for_Washer_model","LG Electronics","2017-02-06T02:01:09","Noted","CR",null,"MAS 27"]
["PRO-2017-0016","TS-0004 deprecate SRole R1","QUALCOMM Inc. (TIA)","2017-02-06T03:13:24","Draft","CR",null,"PRO 27"]
["PRO-2017-0017","TS-0004 deprecate SRole R2","QUALCOMM Inc. (TIA)","2017-02-06T03:13:46","Draft","CR",null,"PRO 27"]
["PRO-2017-0016R01","TS-0004 deprecate SRole R1","QUALCOMM Inc. (TIA)","2017-02-06T04:27:42","Draft","CR",null,"PRO 27"]
["SEC-2016-0187R02","Solution_of_Decentralized Authentication","Huawei","2017-02-06T07:12:22","Draft","INC",null,"SEC 27"]
["ARC-2017-0061R01","TR-0024-SCEF_API_Requirements(UE reachability)","Huawei Technologies Co., Ltd.","2017-02-06T07:42:28","Draft","CR",null,"ARC 27"]
["TP-2017-0007","New WI Disaster Alert Service Enabler","KETI, SyncTechno","2017-02-06T08:02:47","Noted","INC",null,"TP 27"]
["PRO-2017-0019","PRO-2017-CR-CoAP_Uri-Path_Mapping_Table_R2","NTELS Co., LTD. (TTA)","2017-02-06T08:33:06","Draft","CR",null,"PRO 27"]
["PRO-2017-0020","PRO-2017-CR-CoAP_Uri-Path_Mapping_Table_R1 Mirror","NTELS Co., LTD. (TTA)","2017-02-06T08:35:13","Draft","CR",null,"PRO 27"]
["MAS-2017-0009R03","Adding healthcare device model of OMA CDWG to TS-0023","NTT, NTT DOCOMO","2017-02-06T08:35:45","Noted","CR",null,"MAS 27"]
["TST-2017-0028","Security Test Purposes contribution ESPrim AE (Rel2)","Easy Global Market","2017-02-06T08:52:21","Draft","INC",null,"TST 27"]
["TP-2017-0008","Work_Item_for_Modbus_Interworking","ZTE","2017-02-06T09:05:10","Noted","INC",null,"TP 27"]
["REQ-2017-0003","Requirements for use of multiple communication methods","Hiroyuki Maeomichi","2017-02-06T11:37:18","Draft","INC",null,"REQ 27"]
["MAS-2017-0016","Draft-TS-0022_V0_9_0_for_review","TS-0022 Rapporteur","2017-02-06T11:42:24","Noted","INC",null,"MAS 27"]
["REQ-2017-0004","Discussion_paper_Requirements_OTA_Update(TR-0026)","KDDI","2017-02-06T12:30:51","Draft","INC",null,"REQ 27"]
["REQ-2017-0005","Requirements_OTA_Update(TR-0026)","KDDI","2017-02-06T12:33:44","Draft","CR",null,"REQ 27"]
["ARC-2017-0066","Retargeting_to_AE_IPE_NoDN","Convida","2017-02-06T14:04:51","Draft","INC",null,"ARC 27"]
["ARC-2017-0067","CR TS-0001 R3 Add Security Reference Point of TS-0016","Gemalto","2017-02-06T14:19:17","Draft","INC",null,"ARC 27"]
["MAS-2017-0017","Semantic TS skeleton proposal","Convida","2017-02-06T14:37:34","Noted","INC",null,"MAS 27"]
["ARC-2017-0064","TR-0026_Clauses_9_10_Cross_Resource_Subscription","Convida","2017-02-06T14:44:25","Draft","CR",null,"ARC 27"]
["ARC-2017-0065","TR-0026_Clauses_9_10_Subscription_Aggregation","Convida","2017-02-06T14:46:16","Draft","CR",null,"ARC 27"]
["ARC-2017-0044","TR-0026 Key Issue 2","Convida","2017-02-06T15:23:49","Draft","CR",null,"ARC 27"]
["ARC-2017-0045","TR-0024_NIDD_Key_Issues","Convida","2017-02-06T15:24:10","Draft","CR",null,"ARC 27"]
["ARC-2017-0046","Background_Data_Transfer","Convida","2017-02-06T15:24:35","Draft","INC",null,"ARC 27"]
["ARC-2017-0047","TS-0026_Background_Data_Transfer","Convida, ZTE","2017-02-06T15:24:57","Draft","CR",null,"ARC 27"]
["ARC-2017-0048","Retransmission-Timers","Convida","2017-02-06T15:25:13","Draft","INC",null,"ARC 27"]
["ARC-2017-0049","TR-0024 Retransmission-Timers","Convida","2017-02-06T15:25:35","Draft","CR",null,"ARC 27"]
["ARC-2017-0050","TR-0024 Low Access Priority","Convida","2017-02-06T15:25:52","Draft","CR",null,"ARC 27"]
["ARC-2017-0051","TR-0024 Group Configuration","Convida","2017-02-06T15:26:08","Draft","CR",null,"ARC 27"]
["ARC-2017-0052","Trigger Payload","Convida","2017-02-06T15:26:28","Draft","CR",null,"ARC 27"]
["PRO-2017-0018","Trigger Payload","Convida","2017-02-06T15:27:04","Draft","CR",null,"PRO 27"]
["SEC-2017-0008","TEF_interface_updates","Qualcomm Inc. (TIA)","2017-02-06T15:59:53","Draft","INC",null,"SEC 27"]
["SEC-2017-0009","Input4SecurityDevelopersGuide","Qualcomm Inc. (TIA)","2017-02-06T16:00:07","Draft","INC",null,"SEC 27"]
["ARC-2017-0048R01","Retransmission Timers","Convida","2017-02-06T16:22:42","Draft","INC",null,"ARC 27"]
["MAS-2017-0018","Semantic Content Instances","NEC","2017-02-06T16:40:38","Noted","INC",null,"MAS 27"]
["SEC-2017-0010","CR TS-0016 Clause 5 Clarifications","Gemalto","2017-02-06T17:21:13","Draft","CR",null,"SEC 27"]
["SEC-2017-0011","CR TS-0016 Clause 6 SE and Security Levels","Gemalto","2017-02-06T17:23:49","Draft","CR",null,"SEC 27"]
["SEC-2017-0012","CR TS-0016 Clause 7 clarifications","Gemalto","2017-02-06T17:26:16","Draft","CR",null,"SEC 27"]
["ARC-2017-0068","Result Content Request Parameter Corrections  (Rel-2)","Qualcomm Inc. (TIA)","2017-02-06T18:51:48","Draft","CR",null,"ARC 27"]
["PRO-2017-0021","contentInstance_create_with_removal_of_oldest","Convida","2017-02-06T23:08:10","Draft","CR",null,"PRO 27"]
["TP-2017-0008R01","New-WI_for_Modbus_Interworking","ZTE","2017-02-07T01:44:48","Noted","INC",null,"TP 27"]
["TST-2017-0029","Monitoring_procedures_of_TR-0034","Shane HE (Nokia Networks)","2017-02-07T07:27:30","Draft","INC",null,"TST 27"]
["TST-2017-0030","Registration_call_flows_of_TR-0034","Shane HE (Nokia Networks)","2017-02-07T07:28:49","Draft","INC",null,"TST 27"]
["TST-2017-0030R01","Registration_call_flows_of_TR-0034","Shane HE (Nokia Networks)","2017-02-07T07:29:52","Draft","INC",null,"TST 27"]
["TST-2017-0031","Discovery_and_retrieval_call_flows_of_TR-0034","Shane HE (Nokia Networks)","2017-02-07T07:32:02","Draft","INC",null,"TST 27"]
["TST-2017-0032","Actuator_switch_call_flows_of_TR-0034","Shane HE (Nokia Networks)","2017-02-07T07:33:18","Draft","INC",null,"TST 27"]
["REQ-2017-0001R01","Autonomous driving","M.Djurica (TNO)","2017-02-07T08:11:45","Draft","INC",null,"REQ 27"]
["REQ-2017-0003R01","Requirements for use of multiple communication methods","Hiroyuki Maeomichi","2017-02-07T09:18:07","Draft","INC",null,"REQ 27"]
["REQ-2017-0006","CR_Requirement_for_use_of_multiple_communication_methods","Hiroyuki Maeomichi","2017-02-07T09:19:54","Draft","CR",null,"REQ 27"]
["TP-2017-0009","Work Program Status TP#27 opening","Roland Hechwartner (WPM Convenor)","2017-02-07T11:59:36","Noted","INC",null,"TP 27"]
["ARC-2017-0069","Skeleton_for_proximal_IoT_interworking","Huawei Technologies Co., Ltd.","2017-02-07T12:04:44","Draft","INC",null,"ARC 27"]
["REQ-2017-0007","CR TS-0011 Precise definition of Credentials","Gemalto","2017-02-07T15:27:32","Draft","CR",null,"REQ 27"]
["REQ-2017-0008","Vehicle Data Service requirements","Convida","2017-02-07T16:29:21","Draft","CR",null,"REQ 27"]
["SEC-2017-0013","CR TS-0003 corrections to definitions (R2)","Gemalto","2017-02-07T17:03:41","Draft","CR",null,"SEC 27"]
["REQ-2017-0009","Draft-TR-0026-Vehicular_Domain_Enablement_v_0_6_0","Hitachi Ltd.","2017-02-08T05:14:54","Draft","CR",null,"REQ 27"]
["ARC-2017-0060R01","TR-0024-SCEF_API_Requirements(Location Reporting)","China Telecom;Huawei Technologies Co., Ltd","2017-02-08T07:16:50","Draft","CR",null,"ARC 27"]
["ARC-2017-0070","Proximal_IoT_Interworking_discussion","Huawei Technologies Co., Ltd.","2017-02-08T07:26:55","Draft","INC",null,"ARC 27"]
["PRO-2017-0023","correction_of_notification","Huawei Technologies Co., Ltd.","2017-02-08T08:06:03","Draft","CR",null,"PRO 27"]
["PRO-2016-0463R01","labels support key value pair","Huawei Technologies Co., Ltd.","2017-02-08T08:10:16","Draft","CR",null,"PRO 27"]
["SEC-2017-0014","SEC 27 F2F Meeting Agenda","WG Chair (Gemalto)","2017-02-08T10:58:35","Draft","AG",null,"SEC 27"]
["TST-2017-0033","Requirements collection v0.7","Miguel Angel Reina Ortega, ETSI","2017-02-08T22:03:34","Draft","INC",null,"TST 27"]
["ARC-2017-0071","SCEF discussion","Omar Elloumi Nokia","2017-02-09T08:23:22","Draft","AG",null,"ARC 27"]
["TP-2017-0006","Weekly Schedule TP27","Karen Hughes, Secretariat","2017-02-09T08:57:03","Noted","INC",null,"TP 27"]
["TP-2017-0010","TR-0019 for ratification","SEC WG Chair","2017-02-09T09:23:59","Approved","INC",null,"TP 27"]
["PRO-2017-0026","partial resource retrieval (R2)","KETI","2017-02-09T09:48:31","Draft","CR",null,"PRO 27"]
["PRO-2017-0025","partial resource retrieval (R1)","KETI","2017-02-09T09:48:47","Draft","CR",null,"PRO 27"]
["TP-2017-0011","Update to proposed 2018 meeting dates","Karen Hughes, Secretariat","2017-02-09T13:15:31","Noted","INC",null,"TP 27"]
["ARC-2017-0064R01","TR-0026_Clauses_9_10_Cross_Resource_Subscription","Convida, KDDI","2017-02-09T14:54:09","Draft","CR",null,"ARC 27"]
["ARC-2017-0065R01","TR-0026_Clauses_9_10_Subscription_Aggregation","Convida, KDDI","2017-02-09T14:54:49","Draft","CR",null,"ARC 27"]
["REQ-2017-0008R01","Vehicle Data Service requirements","Convida, KDDI","2017-02-09T14:55:24","Draft","CR",null,"REQ 27"]
["TP-2017-0012","Response to oneM2M LS TP-2016-0334R03","OCF","2017-02-09T16:04:33","Noted","LS",null,"TP 27"]
["MAS-2017-0021","Response_to_oneM2M_LS_TP-2016-0334R03","OCF","2017-02-09T16:06:21","Noted","LS",null,"MAS 27"]
["MAS-2017-0022","CR DevCfg Extension of merging AuthProfiles","Qualcomm Inc. (TIA)","2017-02-09T17:34:44","Noted","CR",null,"MAS 27"]
["SEC-2017-0015","Discussion on Trust Management","ETRI","2017-02-09T22:49:11","Draft","INC",null,"SEC 27"]
["SEC-2017-0016","Trust management in oneM2M","ETRI","2017-02-09T22:56:46","Draft","INC",null,"SEC 27"]
["REQ-2017-0010","Update of OSR Requirements Within TS0002 Not Met","Shelby Kiewel, iconectiv","2017-02-10T02:03:21","Draft","CR",null,"REQ 27"]
["REQ-2017-0011","Update of Security Requirements Within TS0002 Not Met","Shelby Kiewel, iconectiv","2017-02-10T02:05:46","Draft","CR",null,"REQ 27"]
["REQ-2017-0012","Update of MAS Requirements Within TS0002 Not Met","Shelby Kiewel, iconectiv","2017-02-10T02:06:32","Draft","CR",null,"REQ 27"]
["REQ-2017-0013","Update of ARC Requirements Within TS0002 Not Met","Shelby Kiewel, iconectiv","2017-02-10T02:07:30","Draft","CR",null,"REQ 27"]
["ARC-2017-0072","DDS usage in oneM2M clause 6","KETI","2017-02-10T02:26:25","Draft","INC",null,"ARC 27"]
["ARC-2017-0058R01","TS-0001_Functional_Architecture-V3_3_0","ZTE","2017-02-10T03:09:16","Draft","INC",null,"ARC 27"]
["TP-2017-0008R02","New-WI_for_Modbus_Interworking","ZTE","2017-02-10T03:44:52","Noted","INC",null,"TP 27"]
["MAS-2017-0022R01","CR DevCfg Extension of merging AuthProfiles","Qualcomm Inc. (TIA)","2017-02-10T05:22:22","Noted","CR",null,"MAS 27"]
["REQ-2017-0006R01","CR_Requirement_for_use_of_multiple_communication_methods","Hiroyuki Maeomichi","2017-02-10T06:04:30","Draft","CR",null,"REQ 27"]
["REQ-2017-0003R02","Requirements for use of multiple communication methods","Hiroyuki Maeomichi","2017-02-10T06:05:13","Draft","INC",null,"REQ 27"]
["SEC-2017-0015R01","Discussion on Trust Management","ETRI","2017-02-10T07:41:52","Draft","INC",null,"SEC 27"]
["TST-2017-0034","TS-0019 TTCN-3 Test cases","Miguel Angel Reina Ortega, ETSI","2017-02-10T11:02:06","Draft","INC",null,"TST 27"]
["SEC-2017-0014R01","SEC 27 F2F Meeting Agenda","WG Chair (Gemalto)","2017-02-10T14:46:26","Draft","AG",null,"SEC 27"]
["PRO-2016-0489R02","container_procedures_mni_mbs_mia","Convida Wireless","2017-02-10T21:26:35","Draft","CR",null,"PRO 27"]
["ARC-2016-0544R02","CR-Standardize_Default_ACP_Privileges","Convida Wireless, Qualcomm","2017-02-10T21:48:16","Draft","CR",null,"ARC 27"]
["ARC-2016-0545R02","CR-Standardize_Default_ACP_Privileges_R2_Mirror","Convida Wireless, Qualcomm","2017-02-10T21:48:41","Draft","CR",null,"ARC 27"]
["SEC-2017-0017","DM-based MEF","Qualcomm Inc. (TIA)","2017-02-11T03:33:43","Draft","INC",null,"SEC 27"]
["MAS-2017-0020","Doc Allocation MAS#27","Yongjing Zhang (Huawei, MAS Chair)","2017-02-11T18:36:48","Draft","AG",null,"MAS 27"]
["MAS-2017-0019","Agenda MAS#27","Yongjing Zhang (Huawei, MAS Chair)","2017-02-11T18:38:00","Draft","AG",null,"MAS 27"]
["TP-2017-0014","Reply to GSMA on Mobile IoT Device Management & Service Enablement","OMA ARC WG","2017-02-12T18:30:31","Noted","LS",null,"TP 27"]
["TP-2017-0006R01","Weekly Schedule TP27","Karen Hughes, Secretariat","2017-02-12T18:41:54","Noted","INC",null,"TP 27"]
["TP-2017-0015","WI-0030 update for TS-0022","WI-0030 Rapporteur (present by WG5 chair)","2017-02-13T00:09:51","Approved","INC",null,"TP 27"]
["TP-2017-0006R02","Weekly Schedule TP27","Karen Hughes, Secretariat","2017-02-13T03:37:26","Noted","INC",null,"TP 27"]
["REQ-2017-0009R01","Draft-TR-0026-Vehicular_Domain_Enablement_v_0_6_0","Hitachi Ltd.","2017-02-13T04:52:44","Draft","CR",null,"REQ 27"]
["MAS-2017-0023","CR_DevCfg-V0_9_0 Reorganising clause 7","Qualcomm Inc. (TIA)","2017-02-13T12:08:15","Agreed","CR",null,"MAS 27"]
["MAS-2017-0024","CR_DevCfg_dataCollection_links_to_ESPrim_authProfile","Qualcomm Inc. (TIA)","2017-02-13T12:25:03","Noted","CR",null,"MAS 27"]
["MAS-2017-0025","CR DevCfg registration links to authProfile","Qualcomm Inc. (TIA)","2017-02-13T12:32:24","Noted","CR",null,"MAS 27"]
["TP-2017-0016","Reply LS to SA2 on standardization of Northbound SCEF API","3GPP SA3","2017-02-13T15:12:23","Noted","LS",null,"TP 27"]
["MAS-2017-0022R02","CR DevCfg Extension of merging AuthProfiles","Qualcomm Inc. (TIA)","2017-02-13T15:36:06","Noted","CR",null,"MAS 27"]
["TP-2017-0005","Draft_Response_LS_to_3GPP","Convida","2017-02-13T16:58:56","Noted","INC",null,"TP 27"]
["REQ-2017-0014","REQ27 Allocation Document Agenda","Shelby Kiewel WG1 REQ Chairman, iconectiv","2017-02-13T18:29:54","Draft","AG",null,"REQ 27"]
["REQ-2017-0015","REQ27 WG1 Agenda","Shelby Kiewel, WG1 REQ Chairman, iconectiv","2017-02-13T18:44:38","Draft","AG",null,"REQ 27"]
["REQ-2017-0014R01","REQ27 Allocation Document Agenda","Shelby Kiewel WG1 REQ Chairman, iconectiv","2017-02-13T19:08:59","Draft","AG",null,"REQ 27"]
["TP-2017-0006R03","Weekly Schedule TP27","Karen Hughes, Secretariat","2017-02-13T19:35:19","Noted","INC",null,"TP 27"]
["REQ-2017-0014R02","REQ27 Allocation Document Agenda","Shelby Kiewel WG1 REQ Chairman, iconectiv","2017-02-13T19:39:58","Draft","AG",null,"REQ 27"]
["REQ-2017-0014R03","REQ27 Allocation Document Agenda","Shelby Kiewel WG1 REQ Chairman, iconectiv","2017-02-13T19:45:02","Draft","AG",null,"REQ 27"]
["TP-2017-0006R04","Weekly Schedule TP27","Karen Hughes, Secretariat","2017-02-14T00:29:27","Noted","INC",null,"TP 27"]
["TP-2017-0017","Launch of oneM2M_Certification_Program","Sookhyun Jeon, TTA","2017-02-14T01:52:31","Noted","INC",null,"TP 27"]
["TP-2017-0018","Agenda TP27","Omar Elloumi, TP Chair","2017-02-14T02:18:29","Noted","AG",null,"TP 27"]
["TP-2017-0006R05","Weekly Schedule TP27","Karen Hughes, Secretariat","2017-02-14T02:22:03","Noted","INC",null,"TP 27"]
["TP-2017-0019","Update_to_WI-0034","KETI, nTels (TTA)","2017-02-14T02:29:26","Noted","CR",null,"TP 27"]
["MAS-2017-0024R01","CR_DevCfg_dataCollection_links_to_ESPrim_authProfile","Qualcomm Inc. (TIA)","2017-02-14T03:43:07","Agreed","CR",null,"MAS 27"]
["TP-2017-0018R01","Agenda TP27","Omar Elloumi, TP Chair","2017-02-14T05:39:54","Agreed","AG",null,"TP 27"]
["TP-2017-0007R01","New WI Disaster Alert Service Enabler","KETI, SyncTechno","2017-02-14T06:57:28","Noted","INC",null,"TP 27"]
["TP-2017-0020","Updates on WI-0047","KETI, Huawei","2017-02-14T06:58:53","Noted","CR",null,"TP 27"]
["TP-2017-0020R01","Updates on WI-0047","KETI, Huawei","2017-02-14T07:01:07","Noted","CR",null,"TP 27"]
["TP-2017-0007R02","New WI Disaster Alert Service Enabler","KETI, SyncTechno","2017-02-14T17:56:04","Approved","INC",null,"TP 27"]
["TP-2017-0020R02","Updates on WI-0047","KETI, Huawei","2017-02-14T20:09:57","Approved","CR",null,"TP 27"]
["MAS-2017-0019R01","Agenda MAS#27","Yongjing Zhang (Huawei, MAS Chair)","2017-02-14T23:17:15","Draft","AG",null,"MAS 27"]
["MAS-2017-0020R01","Doc Allocation MAS#27","Yongjing Zhang (Huawei, MAS Chair)","2017-02-14T23:18:27","Draft","AG",null,"MAS 27"]
["TP-2017-0006R06","Weekly Schedule TP27","Karen Hughes, Secretariat","2017-02-14T23:22:52","Noted","INC",null,"TP 27"]
["TP-2017-0006R07","Weekly Schedule TP27","Karen Hughes, Secretariat","2017-02-14T23:26:08","Noted","INC",null,"TP 27"]
["MAS-2017-0016R01","Draft-TS-0022_V0_9_0_for_review","TS-0022 Rapporteur","2017-02-14T23:51:13","Agreed","INC",null,"MAS 27"]
["MAS-2017-0019R02","Agenda MAS#27","Yongjing Zhang (Huawei, MAS Chair)","2017-02-15T00:06:51","Draft","AG",null,"MAS 27"]
["MAS-2017-0015R01","HAIM_modification_for_Washer_model","LG Electronics","2017-02-15T01:50:19","Noted","CR",null,"MAS 27"]
["TP-2017-0019R01","Update_to_WI-0034_Input_Contribution_included","KETI, nTels (TTA)","2017-02-15T02:20:58","Approved","CR",null,"TP 27"]
["MAS-2017-0020R02","Doc Allocation MAS#27","Yongjing Zhang (Huawei, MAS Chair)","2017-02-15T02:34:56","Draft","AG",null,"MAS 27"]
["TP-2017-0004R03","New WI for W3C WoT IWK","Yongjing Zhang (Huawei)","2017-02-15T02:57:27","Approved","INC",null,"TP 27"]
["TP-2017-0022","update_WI-0057_TEF_Interface","Qualcomm Inc. (TIA)","2017-02-15T06:42:22","Approved","INC",null,"TP 27"]
["TP-2017-0023","WI-0021 SE Abstraction Schedule&Rapporteur Update","WI Rapporteur (Gemalto)","2017-02-15T17:01:49","Approved","INC",null,"TP 27"]
["TP-2017-0024","WI-0067 UICC PKI Framework schedule update","WI Rapporteur (Gemalto)","2017-02-15T17:03:51","Approved","INC",null,"TP 27"]
["MAS-2017-0018R01","Semantic Content Instances","NEC","2017-02-15T18:14:11","Agreed","INC",null,"MAS 27"]
["TP-2017-0005R01","Draft_Response_LS_to_3GPP","Convida","2017-02-15T18:39:43","Draft","INC",null,"TP 27"]
["MAS-2017-0011R01","CR TS-0012 Introduction of class VariableConversion to support device abstraction","NEC","2017-02-15T19:31:57","Agreed","CR",null,"MAS 27"]
["MAS-2017-0009R04","Adding healthcare device model of OMA CDWG to TS-0023","NTT, NTT DOCOMO","2017-02-15T23:35:24","Agreed","CR",null,"MAS 27"]
["TP-2017-0027","Reply_to_OMA_CDWG_about_their_proposal","NTT, NTT docomo","2017-02-16T00:18:25","Noted","LS",null,"TP 27"]
["TP-2017-0028","Update_to_WI-0046","Hitachi,KDDI","2017-02-16T00:59:01","Approved","CR",null,"TP 27"]
["TP-2017-0025","WPM Status Report TP27","Roland Hechwartner, WPM convenor","2017-02-16T01:30:12","Noted","STR",null,"TP 27"]
["TP-2017-0018R02","Agenda TP27","Omar Elloumi, TP Chair","2017-02-16T01:55:26","Agreed","AG",null,"TP 27"]
["TP-2017-0021","Update of WI-0052 to correct Title of TR","Convida","2017-02-16T02:10:47","Approved","INC",null,"TP 27"]
["MAS-2017-0013R01","Semantic Mashup Procedures","Convida, China Unicom","2017-02-16T02:27:22","Agreed","CR",null,"MAS 27"]
["MAS-2017-0015R02","HAIM_modification_for_Washer_model","LG Electronics","2017-02-16T02:41:57","Agreed","CR",null,"MAS 27"]
["MAS-2017-0014R01","Generic Procedure for Mapping of LWM2M Objects","Convida Wireless","2017-02-16T07:28:36","Noted","CR",null,"MAS 27"]
["TP-2017-0027R01","Reply_to_OMA_CDWG_about_their_proposal","NTT, NTT docomo","2017-02-16T10:17:15","Draft","LS",null,"TP 27"]
["MAS-2017-0020R03","Doc Allocation MAS#27","Yongjing Zhang (Huawei, MAS Chair)","2017-02-16T16:37:43","Draft","AG",null,"MAS 27"]
["TP-2017-0006R08","Weekly Schedule TP27","Karen Hughes, Secretariat","2017-02-16T18:15:20","Draft","INC",null,"TP 27"]
["TP-2017-0008R03","New-WI_for_Modbus_Interworking","ZTE","2017-02-16T18:39:15","Draft","INC",null,"TP 27"]
["TP-2017-0029","Liaison_Response_to_OCF","LG Electronics","2017-02-16T21:48:23","Draft","LS",null,"TP 27"]
["MAS-2016-0288R01","SDT - Proposed changes for V4.0","Andreas Kraft (Deutsche Telekom)","2017-02-16T22:26:28","Draft","INC",null,"MAS 27"]
["TP-2017-0027R02","Reply_to_OMA_CDWG_about_their_proposal","NTT, NTT docomo","2017-02-16T23:11:05","Draft","LS",null,"TP 27"]
["TP-2017-0013","response to 鈥淣orthbound SCEF API standardisation requested by oneM2M鈥?GSMA Mobile IoT","2017-02-10T15:52:03","Noted","LS",null,"TP 27"]
["TP-2017-0026","Work Item Status %comp TP27","Roland Hechwartner, WPM Convenor",null,"Draft","INC",null,"TP 27"]
["ARC-2017-0039","TS0001_semanticDescriptor for mgmtObj R2","Yongjing Zhang (Huawei)",null,"Draft","CR",null,"ARC 27"]
["MAS-2017-0026","MAS27_Minutes","Victoria Mitchell, Secretariat",null,"Draft","MIN",null,"MAS 27"]

{"sheet":"TP","index":3,"n_rows":57,"n_cols":8,"rows_kept":57,"cut":false,"hidden":false,"merged":[]}
["SHORT DOC NB","SHORTNAME","SOURCE","UPLOADED","STATUS","DOC TYPE","VERS","MEETING"]
["TP-2016-0332","TP27_Vancouver_Invitation","Victoria Mitchell, Secretariat","2016-11-03T19:32:09","Noted","INV",null,"TP 27"]
["TP-2016-0332R01","TP27_Vancouver_Invitation","Victoria Mitchell, Secretariat","2016-11-30T16:30:31","Noted","INV",null,"TP 27"]
["TP-2016-0382","Northbound SCEF API standardisation requested by oneM2M","3GPP SA","2016-12-22T08:48:15","Noted","LS",null,"TP 27"]
["TP-2017-0001","Invitation to TP28 in Sophia Antipolis","Karen Hughes, ETSI","2017-01-11T14:05:03","Draft","INV",null,"TP 27"]
["TP-2017-0002","Comments on the oneM2M Home Appliance Information Model and Mapping","OMA CD","2017-01-11T14:51:51","Noted","LS",null,"TP 27"]
["TP-2017-0003","Voting List for TP27","Karen Hughes, Secretariat","2017-01-20T15:28:32","Approved","INC",null,"TP 27"]
["TP-2017-0004","New WI for W3C WoT IWK","Yongjing Zhang (Huawei)","2017-01-26T02:50:32","Noted","INC",null,"TP 27"]
["TP-2017-0004R01","New WI for W3C WoT IWK","Yongjing Zhang (Huawei)","2017-01-26T08:09:06","Noted","INC",null,"TP 27"]
["TP-2017-0004R02","New WI for W3C WoT IWK","Yongjing Zhang (Huawei)","2017-02-04T07:43:09","Noted","INC",null,"TP 27"]
["TP-2017-0007","New WI Disaster Alert Service Enabler","KETI, SyncTechno","2017-02-06T08:02:47","Noted","INC",null,"TP 27"]
["TP-2017-0008","Work_Item_for_Modbus_Interworking","ZTE","2017-02-06T09:05:10","Noted","INC",null,"TP 27"]
["TP-2017-0008R01","New-WI_for_Modbus_Interworking","ZTE","2017-02-07T01:44:48","Noted","INC",null,"TP 27"]
["TP-2017-0009","Work Program Status TP#27 opening","Roland Hechwartner (WPM Convenor)","2017-02-07T11:59:36","Noted","INC",null,"TP 27"]
["TP-2017-0006","Weekly Schedule TP27","Karen Hughes, Secretariat","2017-02-09T08:57:03","Noted","INC",null,"TP 27"]
["TP-2017-0010","TR-0019 for ratification","SEC WG Chair","2017-02-09T09:23:59","Approved","INC",null,"TP 27"]
["TP-2017-0011","Update to proposed 2018 meeting dates","Karen Hughes, Secretariat","2017-02-09T13:15:31","Noted","INC",null,"TP 27"]
["TP-2017-0012","Response to oneM2M LS TP-2016-0334R03","OCF","2017-02-09T16:04:33","Noted","LS",null,"TP 27"]
["TP-2017-0008R02","New-WI_for_Modbus_Interworking","ZTE","2017-02-10T03:44:52","Noted","INC",null,"TP 27"]
["TP-2017-0014","Reply to GSMA on Mobile IoT Device Management & Service Enablement","OMA ARC WG","2017-02-12T18:30:31","Noted","LS",null,"TP 27"]
["TP-2017-0006R01","Weekly Schedule TP27","Karen Hughes, Secretariat","2017-02-12T18:41:54","Noted","INC",null,"TP 27"]
["TP-2017-0015","WI-0030 update for TS-0022","WI-0030 Rapporteur (present by WG5 chair)","2017-02-13T00:09:51","Approved","INC",null,"TP 27"]
["TP-2017-0006R02","Weekly Schedule TP27","Karen Hughes, Secretariat","2017-02-13T03:37:26","Noted","INC",null,"TP 27"]
["TP-2017-0016","Reply LS to SA2 on standardization of Northbound SCEF API","3GPP SA3","2017-02-13T15:12:23","Noted","LS",null,"TP 27"]
["TP-2017-0005","Draft_Response_LS_to_3GPP","Convida","2017-02-13T16:58:56","Noted","INC",null,"TP 27"]
["TP-2017-0006R03","Weekly Schedule TP27","Karen Hughes, Secretariat","2017-02-13T19:35:19","Noted","INC",null,"TP 27"]
["TP-2017-0006R04","Weekly Schedule TP27","Karen Hughes, Secretariat","2017-02-14T00:29:27","Noted","INC",null,"TP 27"]
["TP-2017-0017","Launch of oneM2M_Certification_Program","Sookhyun Jeon, TTA","2017-02-14T01:52:31","Noted","INC",null,"TP 27"]
["TP-2017-0018","Agenda TP27","Omar Elloumi, TP Chair","2017-02-14T02:18:29","Noted","AG",null,"TP 27"]
["TP-2017-0006R05","Weekly Schedule TP27","Karen Hughes, Secretariat","2017-02-14T02:22:03","Noted","INC",null,"TP 27"]
["TP-2017-0019","Update_to_WI-0034","KETI, nTels (TTA)","2017-02-14T02:29:26","Noted","CR",null,"TP 27"]
["TP-2017-0018R01","Agenda TP27","Omar Elloumi, TP Chair","2017-02-14T05:39:54","Agreed","AG",null,"TP 27"]
["TP-2017-0007R01","New WI Disaster Alert Service Enabler","KETI, SyncTechno","2017-02-14T06:57:28","Noted","INC",null,"TP 27"]
["TP-2017-0020","Updates on WI-0047","KETI, Huawei","2017-02-14T06:58:53","Noted","CR",null,"TP 27"]
["TP-2017-0020R01","Updates on WI-0047","KETI, Huawei","2017-02-14T07:01:07","Noted","CR",null,"TP 27"]
["TP-2017-0007R02","New WI Disaster Alert Service Enabler","KETI, SyncTechno","2017-02-14T17:56:04","Approved","INC",null,"TP 27"]
["TP-2017-0020R02","Updates on WI-0047","KETI, Huawei","2017-02-14T20:09:57","Approved","CR",null,"TP 27"]
["TP-2017-0006R06","Weekly Schedule TP27","Karen Hughes, Secretariat","2017-02-14T23:22:52","Noted","INC",null,"TP 27"]
["TP-2017-0006R07","Weekly Schedule TP27","Karen Hughes, Secretariat","2017-02-14T23:26:08","Noted","INC",null,"TP 27"]
["TP-2017-0019R01","Update_to_WI-0034_Input_Contribution_included","KETI, nTels (TTA)","2017-02-15T02:20:58","Approved","CR",null,"TP 27"]
["TP-2017-0004R03","New WI for W3C WoT IWK","Yongjing Zhang (Huawei)","2017-02-15T02:57:27","Approved","INC",null,"TP 27"]
["TP-2017-0022","update_WI-0057_TEF_Interface","Qualcomm Inc. (TIA)","2017-02-15T06:42:22","Approved","INC",null,"TP 27"]
["TP-2017-0023","WI-0021 SE Abstraction Schedule&Rapporteur Update","WI Rapporteur (Gemalto)","2017-02-15T17:01:49","Approved","INC",null,"TP 27"]
["TP-2017-0024","WI-0067 UICC PKI Framework schedule update","WI Rapporteur (Gemalto)","2017-02-15T17:03:51","Approved","INC",null,"TP 27"]
["TP-2017-0005R01","Draft_Response_LS_to_3GPP","Convida","2017-02-15T18:39:43","Draft","INC",null,"TP 27"]
["TP-2017-0027","Reply_to_OMA_CDWG_about_their_proposal","NTT, NTT docomo","2017-02-16T00:18:25","Noted","LS",null,"TP 27"]
["TP-2017-0028","Update_to_WI-0046","Hitachi,KDDI","2017-02-16T00:59:01","Approved","CR",null,"TP 27"]
["TP-2017-0025","WPM Status Report TP27","Roland Hechwartner, WPM convenor","2017-02-16T01:30:12","Noted","STR",null,"TP 27"]
["TP-2017-0018R02","Agenda TP27","Omar Elloumi, TP Chair","2017-02-16T01:55:26","Agreed","AG",null,"TP 27"]
["TP-2017-0021","Update of WI-0052 to correct Title of TR","Convida","2017-02-16T02:10:47","Approved","INC",null,"TP 27"]
["TP-2017-0027R01","Reply_to_OMA_CDWG_about_their_proposal","NTT, NTT docomo","2017-02-16T10:17:15","Draft","LS",null,"TP 27"]
["TP-2017-0006R08","Weekly Schedule TP27","Karen Hughes, Secretariat","2017-02-16T18:15:20","Draft","INC",null,"TP 27"]
["TP-2017-0008R03","New-WI_for_Modbus_Interworking","ZTE","2017-02-16T18:39:15","Draft","INC",null,"TP 27"]
["TP-2017-0029","Liaison_Response_to_OCF","LG Electronics","2017-02-16T21:48:23","Draft","LS",null,"TP 27"]
["TP-2017-0027R02","Reply_to_OMA_CDWG_about_their_proposal","NTT, NTT docomo","2017-02-16T23:11:05","Draft","LS",null,"TP 27"]
["TP-2017-0013","response to 鈥淣orthbound SCEF API standardisation requested by oneM2M鈥?GSMA Mobile IoT","2017-02-10T15:52:03","Noted","LS",null,"TP 27"]
["TP-2017-0026","Work Item Status %comp TP27","Roland Hechwartner, WPM Convenor",null,"Draft","INC",null,"TP 27"]

{"sheet":"REQ","index":4,"n_rows":25,"n_cols":8,"rows_kept":25,"cut":false,"hidden":false,"merged":[]}
["SHORT DOC NB","SHORTNAME","SOURCE","UPLOADED","STATUS","DOC TYPE","VERS","MEETING"]
["REQ-2017-0001","Autonomous driving","M.Djurica (TNO)","2017-02-03T13:45:20","Draft","INC",null,"REQ 27"]
["REQ-2017-0002","Use Case on Heterogeneous Identification Service","Computer Network Information Center, Chinese Academy of Sciences (CNIC)","2017-02-05T14:33:14","Draft","INC",null,"REQ 27"]
["REQ-2017-0003","Requirements for use of multiple communication methods","Hiroyuki Maeomichi","2017-02-06T11:37:18","Draft","INC",null,"REQ 27"]
["REQ-2017-0004","Discussion_paper_Requirements_OTA_Update(TR-0026)","KDDI","2017-02-06T12:30:51","Draft","INC",null,"REQ 27"]
["REQ-2017-0005","Requirements_OTA_Update(TR-0026)","KDDI","2017-02-06T12:33:44","Draft","CR",null,"REQ 27"]
["REQ-2017-0001R01","Autonomous driving","M.Djurica (TNO)","2017-02-07T08:11:45","Draft","INC",null,"REQ 27"]
["REQ-2017-0003R01","Requirements for use of multiple communication methods","Hiroyuki Maeomichi","2017-02-07T09:18:07","Draft","INC",null,"REQ 27"]
["REQ-2017-0006","CR_Requirement_for_use_of_multiple_communication_methods","Hiroyuki Maeomichi","2017-02-07T09:19:54","Draft","CR",null,"REQ 27"]
["REQ-2017-0007","CR TS-0011 Precise definition of Credentials","Gemalto","2017-02-07T15:27:32","Draft","CR",null,"REQ 27"]
["REQ-2017-0008","Vehicle Data Service requirements","Convida","2017-02-07T16:29:21","Draft","CR",null,"REQ 27"]
["REQ-2017-0009","Draft-TR-0026-Vehicular_Domain_Enablement_v_0_6_0","Hitachi Ltd.","2017-02-08T05:14:54","Draft","CR",null,"REQ 27"]
["REQ-2017-0008R01","Vehicle Data Service requirements","Convida, KDDI","2017-02-09T14:55:24","Draft","CR",null,"REQ 27"]
["REQ-2017-0010","Update of OSR Requirements Within TS0002 Not Met","Shelby Kiewel, iconectiv","2017-02-10T02:03:21","Draft","CR",null,"REQ 27"]
["REQ-2017-0011","Update of Security Requirements Within TS0002 Not Met","Shelby Kiewel, iconectiv","2017-02-10T02:05:46","Draft","CR",null,"REQ 27"]
["REQ-2017-0012","Update of MAS Requirements Within TS0002 Not Met","Shelby Kiewel, iconectiv","2017-02-10T02:06:32","Draft","CR",null,"REQ 27"]
["REQ-2017-0013","Update of ARC Requirements Within TS0002 Not Met","Shelby Kiewel, iconectiv","2017-02-10T02:07:30","Draft","CR",null,"REQ 27"]
["REQ-2017-0006R01","CR_Requirement_for_use_of_multiple_communication_methods","Hiroyuki Maeomichi","2017-02-10T06:04:30","Draft","CR",null,"REQ 27"]
["REQ-2017-0003R02","Requirements for use of multiple communication methods","Hiroyuki Maeomichi","2017-02-10T06:05:13","Draft","INC",null,"REQ 27"]
["REQ-2017-0009R01","Draft-TR-0026-Vehicular_Domain_Enablement_v_0_6_0","Hitachi Ltd.","2017-02-13T04:52:44","Draft","CR",null,"REQ 27"]
["REQ-2017-0014","REQ27 Allocation Document Agenda","Shelby Kiewel WG1 REQ Chairman, iconectiv","2017-02-13T18:29:54","Draft","AG",null,"REQ 27"]
["REQ-2017-0015","REQ27 WG1 Agenda","Shelby Kiewel, WG1 REQ Chairman, iconectiv","2017-02-13T18:44:38","Draft","AG",null,"REQ 27"]
["REQ-2017-0014R01","REQ27 Allocation Document Agenda","Shelby Kiewel WG1 REQ Chairman, iconectiv","2017-02-13T19:08:59","Draft","AG",null,"REQ 27"]
["REQ-2017-0014R02","REQ27 Allocation Document Agenda","Shelby Kiewel WG1 REQ Chairman, iconectiv","2017-02-13T19:39:58","Draft","AG",null,"REQ 27"]
["REQ-2017-0014R03","REQ27 Allocation Document Agenda","Shelby Kiewel WG1 REQ Chairman, iconectiv","2017-02-13T19:45:02","Draft","AG",null,"REQ 27"]

{"sheet":"ARC","index":5,"n_rows":47,"n_cols":8,"rows_kept":47,"cut":false,"hidden":false,"merged":[]}
["SHORT DOC NB","SHORTNAME","SOURCE","UPLOADED","STATUS","DOC TYPE","VERS","MEETING"]
["ARC-2016-0468R03","group_multicast_presentation","Huawei Technologies Co., Ltd.","2017-01-26T01:37:59","Noted","INC",null,"ARC 27"]
["ARC-2017-0036","group_multicast_solution_resource_update","Huawei Technologies Co., Ltd.","2017-02-03T01:51:36","Draft","CR",null,"ARC 27"]
["ARC-2017-0037","group_multicast_solution_operation_update","Huawei Technologies Co., Ltd.","2017-02-03T01:54:45","Draft","CR",null,"ARC 27"]
["ARC-2017-0038","TS0001_semanticDescriptor for mgmtObj R3","Yongjing Zhang (Huawei)","2017-02-04T07:40:39","Draft","CR",null,"ARC 27"]
["ARC-2017-0040","features_catalog","Huawei Technologies Co., Ltd.","2017-02-04T08:59:47","Draft","INC",null,"ARC 27"]
["ARC-2017-0041","editorial_correction","ZTE","2017-02-04T09:32:24","Draft","CR",null,"ARC 27"]
["ARC-2017-0042","TS0001 clause 10.2.8 ref num bug fix R3","Yongjing Zhang (Huawei)","2017-02-04T09:58:48","Draft","CR",null,"ARC 27"]
["ARC-2017-0043","Skeleton of  heterogeneous identification service","Computer Network Information Center, Chinese Academy of Sciences (CNIC)","2017-02-05T14:25:13","Draft","INC",null,"ARC 27"]
["ARC-2017-0053","CR-Service_Layer_Forwarding_R3","Convida Wireless","2017-02-05T22:54:24","Draft","CR",null,"ARC 27"]
["ARC-2017-0054","Text Correction on ACP Introduction","Datang","2017-02-05T23:08:15","Draft","CR",null,"ARC 27"]
["ARC-2017-0055","General Description of Distributed Authorization","Datang","2017-02-05T23:11:01","Draft","CR",null,"ARC 27"]
["ARC-2017-0056","Functional Architecture Specifications for Distributed Authorization","Datang","2017-02-05T23:12:51","Draft","CR",null,"ARC 27"]
["ARC-2017-0057","TR-0024_GBA","Convida","2017-02-05T23:29:20","Draft","CR",null,"ARC 27"]
["ARC-2017-0058","TS-0001_Functional_Architecture-V3_3_0","ZTE","2017-02-06T00:57:33","Draft","INC",null,"ARC 27"]
["ARC-2017-0059","TR-0024-SCEF_API_Requirements(Group message Delivery)","Huawei Technologies Co., Ltd.","2017-02-06T01:07:34","Draft","CR",null,"ARC 27"]
["ARC-2017-0060","TR-0024-SCEF_API_Requirements(Location Reporting)","Huawei Technologies Co., Ltd.","2017-02-06T01:09:27","Draft","CR",null,"ARC 27"]
["ARC-2017-0061","TR-0024-SCEF_API_Requirements(UE reachability)","Huawei Technologies Co., Ltd.","2017-02-06T01:12:11","Draft","CR",null,"ARC 27"]
["ARC-2017-0062","TS-0001_Functional_Architecture-V2_12_1","ZTE","2017-02-06T01:13:20","Draft","INC",null,"ARC 27"]
["ARC-2017-0063","Functional_Architecture-V1_15_1","ZTE","2017-02-06T01:34:33","Draft","INC",null,"ARC 27"]
["ARC-2017-0061R01","TR-0024-SCEF_API_Requirements(UE reachability)","Huawei Technologies Co., Ltd.","2017-02-06T07:42:28","Draft","CR",null,"ARC 27"]
["ARC-2017-0066","Retargeting_to_AE_IPE_NoDN","Convida","2017-02-06T14:04:51","Draft","INC",null,"ARC 27"]
["ARC-2017-0067","CR TS-0001 R3 Add Security Reference Point of TS-0016","Gemalto","2017-02-06T14:19:17","Draft","INC",null,"ARC 27"]
["ARC-2017-0064","TR-0026_Clauses_9_10_Cross_Resource_Subscription","Convida","2017-02-06T14:44:25","Draft","CR",null,"ARC 27"]
["ARC-2017-0065","TR-0026_Clauses_9_10_Subscription_Aggregation","Convida","2017-02-06T14:46:16","Draft","CR",null,"ARC 27"]
["ARC-2017-0044","TR-0026 Key Issue 2","Convida","2017-02-06T15:23:49","Draft","CR",null,"ARC 27"]
["ARC-2017-0045","TR-0024_NIDD_Key_Issues","Convida","2017-02-06T15:24:10","Draft","CR",null,"ARC 27"]
["ARC-2017-0046","Background_Data_Transfer","Convida","2017-02-06T15:24:35","Draft","INC",null,"ARC 27"]
["ARC-2017-0047","TS-0026_Background_Data_Transfer","Convida, ZTE","2017-02-06T15:24:57","Draft","CR",null,"ARC 27"]
["ARC-2017-0048","Retransmission-Timers","Convida","2017-02-06T15:25:13","Draft","INC",null,"ARC 27"]
["ARC-2017-0049","TR-0024 Retransmission-Timers","Convida","2017-02-06T15:25:35","Draft","CR",null,"ARC 27"]
["ARC-2017-0050","TR-0024 Low Access Priority","Convida","2017-02-06T15:25:52","Draft","CR",null,"ARC 27"]
["ARC-2017-0051","TR-0024 Group Configuration","Convida","2017-02-06T15:26:08","Draft","CR",null,"ARC 27"]
["ARC-2017-0052","Trigger Payload","Convida","2017-02-06T15:26:28","Draft","CR",null,"ARC 27"]
["ARC-2017-0048R01","Retransmission Timers","Convida","2017-02-06T16:22:42","Draft","INC",null,"ARC 27"]
["ARC-2017-0068","Result Content Request Parameter Corrections  (Rel-2)","Qualcomm Inc. (TIA)","2017-02-06T18:51:48","Draft","CR",null,"ARC 27"]
["ARC-2017-0069","Skeleton_for_proximal_IoT_interworking","Huawei Technologies Co., Ltd.","2017-02-07T12:04:44","Draft","INC",null,"ARC 27"]
["ARC-2017-0060R01","TR-0024-SCEF_API_Requirements(Location Reporting)","China Telecom;Huawei Technologies Co., Ltd","2017-02-08T07:16:50","Draft","CR",null,"ARC 27"]
["ARC-2017-0070","Proximal_IoT_Interworking_discussion","Huawei Technologies Co., Ltd.","2017-02-08T07:26:55","Draft","INC",null,"ARC 27"]
["ARC-2017-0071","SCEF discussion","Omar Elloumi Nokia","2017-02-09T08:23:22","Draft","AG",null,"ARC 27"]
["ARC-2017-0064R01","TR-0026_Clauses_9_10_Cross_Resource_Subscription","Convida, KDDI","2017-02-09T14:54:09","Draft","CR",null,"ARC 27"]
["ARC-2017-0065R01","TR-0026_Clauses_9_10_Subscription_Aggregation","Convida, KDDI","2017-02-09T14:54:49","Draft","CR",null,"ARC 27"]
["ARC-2017-0072","DDS usage in oneM2M clause 6","KETI","2017-02-10T02:26:25","Draft","INC",null,"ARC 27"]
["ARC-2017-0058R01","TS-0001_Functional_Architecture-V3_3_0","ZTE","2017-02-10T03:09:16","Draft","INC",null,"ARC 27"]
["ARC-2016-0544R02","CR-Standardize_Default_ACP_Privileges","Convida Wireless, Qualcomm","2017-02-10T21:48:16","Draft","CR",null,"ARC 27"]
["ARC-2016-0545R02","CR-Standardize_Default_ACP_Privileges_R2_Mirror","Convida Wireless, Qualcomm","2017-02-10T21:48:41","Draft","CR",null,"ARC 27"]
["ARC-2017-0039","TS0001_semanticDescriptor for mgmtObj R2","Yongjing Zhang (Huawei)",null,"Draft","CR",null,"ARC 27"]

{"sheet":"PRO","index":6,"n_rows":13,"n_cols":8,"rows_kept":13,"cut":false,"hidden":false,"merged":[]}
["SHORT DOC NB","SHORTNAME","SOURCE","UPLOADED","STATUS","DOC TYPE","VERS","MEETING"]
["PRO-2017-0016","TS-0004 deprecate SRole R1","QUALCOMM Inc. (TIA)","2017-02-06T03:13:24","Draft","CR",null,"PRO 27"]
["PRO-2017-0017","TS-0004 deprecate SRole R2","QUALCOMM Inc. (TIA)","2017-02-06T03:13:46","Draft","CR",null,"PRO 27"]
["PRO-2017-0016R01","TS-0004 deprecate SRole R1","QUALCOMM Inc. (TIA)","2017-02-06T04:27:42","Draft","CR",null,"PRO 27"]
["PRO-2017-0019","PRO-2017-CR-CoAP_Uri-Path_Mapping_Table_R2","NTELS Co., LTD. (TTA)","2017-02-06T08:33:06","Draft","CR",null,"PRO 27"]
["PRO-2017-0020","PRO-2017-CR-CoAP_Uri-Path_Mapping_Table_R1 Mirror","NTELS Co., LTD. (TTA)","2017-02-06T08:35:13","Draft","CR",null,"PRO 27"]
["PRO-2017-0018","Trigger Payload","Convida","2017-02-06T15:27:04","Draft","CR",null,"PRO 27"]
["PRO-2017-0021","contentInstance_create_with_removal_of_oldest","Convida","2017-02-06T23:08:10","Draft","CR",null,"PRO 27"]
["PRO-2017-0023","correction_of_notification","Huawei Technologies Co., Ltd.","2017-02-08T08:06:03","Draft","CR",null,"PRO 27"]
["PRO-2016-0463R01","labels support key value pair","Huawei Technologies Co., Ltd.","2017-02-08T08:10:16","Draft","CR",null,"PRO 27"]
["PRO-2017-0026","partial resource retrieval (R2)","KETI","2017-02-09T09:48:31","Draft","CR",null,"PRO 27"]
["PRO-2017-0025","partial resource retrieval (R1)","KETI","2017-02-09T09:48:47","Draft","CR",null,"PRO 27"]
["PRO-2016-0489R02","container_procedures_mni_mbs_mia","Convida Wireless","2017-02-10T21:26:35","Draft","CR",null,"PRO 27"]

{"sheet":"SEC","index":7,"n_rows":15,"n_cols":8,"rows_kept":15,"cut":false,"hidden":false,"merged":[]}
["SHORT DOC NB","SHORTNAME","SOURCE","UPLOADED","STATUS","DOC TYPE","VERS","MEETING"]
["SEC-2017-0007","Specification for Distributed Authorization","Datang","2017-02-05T23:19:54","Draft","CR",null,"SEC 27"]
["SEC-2016-0187R02","Solution_of_Decentralized Authentication","Huawei","2017-02-06T07:12:22","Draft","INC",null,"SEC 27"]
["SEC-2017-0008","TEF_interface_updates","Qualcomm Inc. (TIA)","2017-02-06T15:59:53","Draft","INC",null,"SEC 27"]
["SEC-2017-0009","Input4SecurityDevelopersGuide","Qualcomm Inc. (TIA)","2017-02-06T16:00:07","Draft","INC",null,"SEC 27"]
["SEC-2017-0010","CR TS-0016 Clause 5 Clarifications","Gemalto","2017-02-06T17:21:13","Draft","CR",null,"SEC 27"]
["SEC-2017-0011","CR TS-0016 Clause 6 SE and Security Levels","Gemalto","2017-02-06T17:23:49","Draft","CR",null,"SEC 27"]
["SEC-2017-0012","CR TS-0016 Clause 7 clarifications","Gemalto","2017-02-06T17:26:16","Draft","CR",null,"SEC 27"]
["SEC-2017-0013","CR TS-0003 corrections to definitions (R2)","Gemalto","2017-02-07T17:03:41","Draft","CR",null,"SEC 27"]
["SEC-2017-0014","SEC 27 F2F Meeting Agenda","WG Chair (Gemalto)","2017-02-08T10:58:35","Draft","AG",null,"SEC 27"]
["SEC-2017-0015","Discussion on Trust Management","ETRI","2017-02-09T22:49:11","Draft","INC",null,"SEC 27"]
["SEC-2017-0016","Trust management in oneM2M","ETRI","2017-02-09T22:56:46","Draft","INC",null,"SEC 27"]
["SEC-2017-0015R01","Discussion on Trust Management","ETRI","2017-02-10T07:41:52","Draft","INC",null,"SEC 27"]
["SEC-2017-0014R01","SEC 27 F2F Meeting Agenda","WG Chair (Gemalto)","2017-02-10T14:46:26","Draft","AG",null,"SEC 27"]
["SEC-2017-0017","DM-based MEF","Qualcomm Inc. (TIA)","2017-02-11T03:33:43","Draft","INC",null,"SEC 27"]

{"sheet":"MAS","index":8,"n_rows":40,"n_cols":8,"rows_kept":40,"cut":false,"hidden":false,"merged":[]}
["SHORT DOC NB","SHORTNAME","SOURCE","UPLOADED","STATUS","DOC TYPE","VERS","MEETING"]
["MAS-2016-0292","section-Toy_in_TS-0023","motionblue,blockToy","2016-12-28T15:40:38","Noted","CR",null,"MAS 27"]
["MAS-2017-0002","TS-0006-Data_collection_schedules","Timothy Carey, Nokia","2017-01-09T17:14:19","Agreed","INC",null,"MAS 27"]
["MAS-2017-0006","Comments on the oneM2M Home Appliance Information Model and Mapping","OMA CD","2017-01-11T14:56:17","Noted","LS",null,"MAS 27"]
["MAS-2017-0009R02","Adding healthcare device model of OMA CDWG to TS-0023","NTT, NTT DOCOMO","2017-02-03T08:05:24","Draft","CR",null,"MAS 27"]
["MAS-2017-0011","CR TS-0012 Introduction of class VariableConversion to support device abstraction","NEC","2017-02-03T22:01:33","Noted","CR",null,"MAS 27"]
["MAS-2017-0012","CR TS-0030 Specification of an Abstraction Application Entity for device abstraction","NEC","2017-02-03T22:02:01","Noted","CR",null,"MAS 27"]
["MAS-2017-0014","Generic Procedure for Mapping of LWM2M Objects","Convida Wireless","2017-02-05T22:29:51","Noted","CR",null,"MAS 27"]
["MAS-2017-0013","Semantic Mashup Procedures","Convida, China Unicom","2017-02-05T23:54:21","Draft","CR",null,"MAS 27"]
["MAS-2017-0005R03","CR_DevCfg_merging_AuthProfiles","Fujitsu","2017-02-06T00:07:14","Draft","CR",null,"MAS 27"]
["MAS-2017-0015","HAIM_modification_for_Washer_model","LG Electronics","2017-02-06T02:01:09","Noted","CR",null,"MAS 27"]
["MAS-2017-0009R03","Adding healthcare device model of OMA CDWG to TS-0023","NTT, NTT DOCOMO","2017-02-06T08:35:45","Noted","CR",null,"MAS 27"]
["MAS-2017-0016","Draft-TS-0022_V0_9_0_for_review","TS-0022 Rapporteur","2017-02-06T11:42:24","Noted","INC",null,"MAS 27"]
["MAS-2017-0017","Semantic TS skeleton proposal","Convida","2017-02-06T14:37:34","Noted","INC",null,"MAS 27"]
["MAS-2017-0018","Semantic Content Instances","NEC","2017-02-06T16:40:38","Noted","INC",null,"MAS 27"]
["MAS-2017-0021","Response_to_oneM2M_LS_TP-2016-0334R03","OCF","2017-02-09T16:06:21","Noted","LS",null,"MAS 27"]
["MAS-2017-0022","CR DevCfg Extension of merging AuthProfiles","Qualcomm Inc. (TIA)","2017-02-09T17:34:44","Noted","CR",null,"MAS 27"]
["MAS-2017-0022R01","CR DevCfg Extension of merging AuthProfiles","Qualcomm Inc. (TIA)","2017-02-10T05:22:22","Noted","CR",null,"MAS 27"]
["MAS-2017-0020","Doc Allocation MAS#27","Yongjing Zhang (Huawei, MAS Chair)","2017-02-11T18:36:48","Draft","AG",null,"MAS 27"]
["MAS-2017-0019","Agenda MAS#27","Yongjing Zhang (Huawei, MAS Chair)","2017-02-11T18:38:00","Draft","AG",null,"MAS 27"]
["MAS-2017-0023","CR_DevCfg-V0_9_0 Reorganising clause 7","Qualcomm Inc. (TIA)","2017-02-13T12:08:15","Agreed","CR",null,"MAS 27"]
["MAS-2017-0024","CR_DevCfg_dataCollection_links_to_ESPrim_authProfile","Qualcomm Inc. (TIA)","2017-02-13T12:25:03","Noted","CR",null,"MAS 27"]
["MAS-2017-0025","CR DevCfg registration links to authProfile","Qualcomm Inc. (TIA)","2017-02-13T12:32:24","Noted","CR",null,"MAS 27"]
["MAS-2017-0022R02","CR DevCfg Extension of merging AuthProfiles","Qualcomm Inc. (TIA)","2017-02-13T15:36:06","Noted","CR",null,"MAS 27"]
["MAS-2017-0024R01","CR_DevCfg_dataCollection_links_to_ESPrim_authProfile","Qualcomm Inc. (TIA)","2017-02-14T03:43:07","Agreed","CR",null,"MAS 27"]
["MAS-2017-0019R01","Agenda MAS#27","Yongjing Zhang (Huawei, MAS Chair)","2017-02-14T23:17:15","Draft","AG",null,"MAS 27"]
["MAS-2017-0020R01","Doc Allocation MAS#27","Yongjing Zhang (Huawei, MAS Chair)","2017-02-14T23:18:27","Draft","AG",null,"MAS 27"]
["MAS-2017-0016R01","Draft-TS-0022_V0_9_0_for_review","TS-0022 Rapporteur","2017-02-14T23:51:13","Agreed","INC",null,"MAS 27"]
["MAS-2017-0019R02","Agenda MAS#27","Yongjing Zhang (Huawei, MAS Chair)","2017-02-15T00:06:51","Draft","AG",null,"MAS 27"]
["MAS-2017-0015R01","HAIM_modification_for_Washer_model","LG Electronics","2017-02-15T01:50:19","Noted","CR",null,"MAS 27"]
["MAS-2017-0020R02","Doc Allocation MAS#27","Yongjing Zhang (Huawei, MAS Chair)","2017-02-15T02:34:56","Draft","AG",null,"MAS 27"]
["MAS-2017-0018R01","Semantic Content Instances","NEC","2017-02-15T18:14:11","Agreed","INC",null,"MAS 27"]
["MAS-2017-0011R01","CR TS-0012 Introduction of class VariableConversion to support device abstraction","NEC","2017-02-15T19:31:57","Agreed","CR",null,"MAS 27"]
["MAS-2017-0009R04","Adding healthcare device model of OMA CDWG to TS-0023","NTT, NTT DOCOMO","2017-02-15T23:35:24","Agreed","CR",null,"MAS 27"]
["MAS-2017-0013R01","Semantic Mashup Procedures","Convida, China Unicom","2017-02-16T02:27:22","Agreed","CR",null,"MAS 27"]
["MAS-2017-0015R02","HAIM_modification_for_Washer_model","LG Electronics","2017-02-16T02:41:57","Agreed","CR",null,"MAS 27"]
["MAS-2017-0014R01","Generic Procedure for Mapping of LWM2M Objects","Convida Wireless","2017-02-16T07:28:36","Noted","CR",null,"MAS 27"]
["MAS-2017-0020R03","Doc Allocation MAS#27","Yongjing Zhang (Huawei, MAS Chair)","2017-02-16T16:37:43","Draft","AG",null,"MAS 27"]
["MAS-2016-0288R01","SDT - Proposed changes for V4.0","Andreas Kraft (Deutsche Telekom)","2017-02-16T22:26:28","Draft","INC",null,"MAS 27"]
["MAS-2017-0026","MAS27_Minutes","Victoria Mitchell, Secretariat",null,"Draft","MIN",null,"MAS 27"]

{"sheet":"TST","index":9,"n_rows":12,"n_cols":8,"rows_kept":12,"cut":false,"hidden":false,"merged":[]}
["SHORT DOC NB","SHORTNAME","SOURCE","UPLOADED","STATUS","DOC TYPE","VERS","MEETING"]
["TST-2017-0025","TS-0013-Interoperability_Testing-V1_3_0","Laurent Velez, ETSI","2017-01-25T15:51:23","Draft","INC",null,"TST 27"]
["TST-2017-0026","TS-0013 update of the TD format","Laurent Velez, ETSI","2017-01-31T14:35:08","Draft","INC",null,"TST 27"]
["TST-2017-0027","Skeleton of TR-00vv Developer's Guide on SDT","Patricia Martigne (Orange)","2017-02-04T23:06:39","Draft","INC",null,"TST 27"]
["TST-2017-0028","Security Test Purposes contribution ESPrim AE (Rel2)","Easy Global Market","2017-02-06T08:52:21","Draft","INC",null,"TST 27"]
["TST-2017-0029","Monitoring_procedures_of_TR-0034","Shane HE (Nokia Networks)","2017-02-07T07:27:30","Draft","INC",null,"TST 27"]
["TST-2017-0030","Registration_call_flows_of_TR-0034","Shane HE (Nokia Networks)","2017-02-07T07:28:49","Draft","INC",null,"TST 27"]
["TST-2017-0030R01","Registration_call_flows_of_TR-0034","Shane HE (Nokia Networks)","2017-02-07T07:29:52","Draft","INC",null,"TST 27"]
["TST-2017-0031","Discovery_and_retrieval_call_flows_of_TR-0034","Shane HE (Nokia Networks)","2017-02-07T07:32:02","Draft","INC",null,"TST 27"]
["TST-2017-0032","Actuator_switch_call_flows_of_TR-0034","Shane HE (Nokia Networks)","2017-02-07T07:33:18","Draft","INC",null,"TST 27"]
["TST-2017-0033","Requirements collection v0.7","Miguel Angel Reina Ortega, ETSI","2017-02-08T22:03:34","Draft","INC",null,"TST 27"]
["TST-2017-0034","TS-0019 TTCN-3 Test cases","Miguel Angel Reina Ortega, ETSI","2017-02-10T11:02:06","Draft","INC",null,"TST 27"]